Workbook

Sheet Instructivo
A1: CRITERIO DE PRIORIZACIÓN DE TRÁMITES ADMINISTRATIVOS
A2: Instructivo
A3: Consideraciones generales
A5: En las hojas “COSTO DE ADMINISTRACIÓN PÚBLICA”y “RESUMEN” para añadir más trámites y que apliquen las fórmulas, se deberá seleccionar la primera fila y copiarla una por cada trámite de la entidad
A7: Todas las hojas tienen columnas de color celeste, en las cuales NO deben ingresar valores ya que contienen fórmulas.
A8: Para la carga en GOB.EC. La institución debe recordar que el peso máximo del archivo es de 2 MB.
A9: Esquema de puntuación
A10: Para priorizar un trámite, se realizará un análisis de criterios básicos y adicionales basado en información que disponen las instituciones sujetas a esta norma técnica. Cada criterio será puntuado según los lineamientos presentes en esta norma.
A11: a) Demanda Anual
A12: Considerará el volumen o frecuencia de las solicitudes que ingresan al año a cada institución para la gestión de un trámite en particular.
A13: La identificación del volumen anual de los trámites se realizará a través de sus registros de transacciones y/o el número de visitas de consulta de información realizadas a través de páginas web institucionales.
A14: Para realizar el registro realice lo siguiente:
A15: 1.- Seleccione la hoja DEMANDA ANUAL
A16: 2.- Ingrese los trámites de la institución registrando el identificador y nombre en las columnas respectivas.
A17: 3.- Para cada trámite debe especificar en la columna DEMANDA ANUAL el volumen o frecuencia anual, de acuerdo a lo mencionado anteriormente.
A18: 4.- Una vez terminado el llenado solicitado presione el botón PUNTUACIÓN, se ordenara de menor a mayor.
A19: 5.- Usted visualizará el ordenamiento de los trámites ingresados de acuerdo al número de volumen o frecuencia anual.
A20: 6.- Así mismo, usted visualizará el puntaje obtenido en la columna PUNTUACIÓN de acuerdo al grupo obtenido por cada trámite de acuerdo al número de volumen o frecuencia anual cosiderando lo siguiente: ** Primer grupo (trámites con menor demanda no incluye los trámites con demanda 0 ) = 3 ** Segundo grupo (trámites con demanda intermedia) = 6 ** Tercer grupo (trámites con mayor demanda) = 10
A21: Cada vez que requiera actualizar el puntaje presionando el botón puntuación, debe verificar que la celda de la columna puntaje se encuentren vacías, es decir, se debe borrar cualquier valor de puntaje obtenido previamente.
A22: b) Volumen de quejas asociadas a un trámite:
A23: Considerará la cantidad de quejas recibidas en relación a un trámite durante un año. Estas quejas deberán estar documentadas en medios físicos y/o digitales.
A24: Para determinar la puntuación, se colocará en una tabla todos los trámites con sus correspondientes quejas ordenándose de menor a mayor. Se dividirá en 2 partes en los que cada grupo contenga la misma cantidad de trámites.
A25: Para realizar el registro realice lo siguiente:
A26: 1.- Seleccione la hoja VOLUMEN DE QUEJAS
A27: 2.- Ingrese los trámites de la institución registrando el identificador y nombre en las columnas respectivas. Si usted requiere de acuerdo al número de trámites copie filas adicionales que estén dentro del cuadro
A28: 3.- Para cada trámite debe especificar en la columna VOLUMEN QUEJAS el número de quejas anual, de acuerdo a lo mencionado anteriormente.
A29: 4.- Una vez terminado el llenado solicitado presione el botón PUNTUACIÓN.
A30: 5.- Usted visualizará el ordenamiento de los trámites ingresados de acuerdo al número de volumen o frecuencia anual.
A31: 6.- Así mismo, usted visualizará el puntaje obtenido en la columna PUNTUACIÓN de acuerdo al grupo obtenido por cada trámite de acuerdo al número de volumen o frecuencia anual cosiderando lo siguiente: La puntuación se basará en los siguientes grupos: ** Primer grupo (trámites con menor cantidad de quejas, no incluye los trámites con queja 0 ) = 4 ** Segundo grupo (trámites con mayor porcentaje de quejas) = 10
A32: El valor del volumen de quejas no debe ser superior al valor del volumen de la demana, no le permitirá registrar un valor.
A33: c) Costo para la administración pública:
A34: En cada trámite, basado en un caso estándar, se deberá estimar el costo incurrido en el costo de personal y recursos necesarios para su atención desde que el administrado entregó todos los requisitos hasta que la institución entregue el producto, respuesta o servicio requerido en el trámite. Se considerará:
A35: • Costo de personal:
A36: Costo del personal para atender el trámite, se excluyen actividades realizadas automáticamente o que dependen del administrado. El tiempo deberá considerar únicamente el tiempo efectivo de trabajo del personal, no debe considerar el tiempo de espera o de movimiento.
A37: • Costo de recursos:
A38: Se deberá considerar el costo directo en el que la institución debe incurrir para atender un trámite. Se debe considerar los insumos o materia prima necesaria u cualquier otro que la institución considere pertinente.
A39: Para realizar el registro realice lo siguiente:
A40: 1.- Seleccione la hoja COSTO ADMINISTRACIÓN PÚBLICA
A41: 2.- Ingrese los trámites de la institución registrando el identificador y nombre en las columnas respectivas. Si usted requiere de acuerdo al número de trámites copie filas adicionales que estén dentro del cuadro
A42: 3.- Para calcular el tiempo de las actividades, utilizar la hoja AUXILIAR COSTO ADMINISTRACIÓN donde deberá listar todas las actividades que realiza la institución en un caso estándar y asignar el tiempo mínimo que toma cada actvidad (en horas). El tiempo total de las actividades, deberá ingresar en la correspondiente celda de la hoja COSTO ADMINISTRACIÓN PÚBLICA
A43: 4.- En función de la información registrada en el paso 3, la matriz entregará el costo del personal
A44: 5.- Completar la columna "Costo recursos", en la cual ingresará el costo directo en el que incurre la institución para entregar el trámite. En este valor se considerarán los valores correspondientes a insumos y/o materia prima mínimos que se invierten por cada trámite (no se considera mano de obra)
A45: 6.- La columna "Costo para la adm. pública" mostrará el costto de este criterio para cada trámite
A46: 7,- Para que la fórmula funcione debe arrastrar hacia abajo al último de los támites ingresados, no copiar
A47: 7.- Una vez que disponga del Costo para la administración pública, presionar el botón "GENERAR".
A48: 8. Visualizar la hoja “RESUMEN DE COSTO AP” en la que va a encontrar copiada las celdas necesarias para el ordenamiento y puntuación de las mismas al presionar el botón “PUNTUACIÓN”
A50: d) Tiempo de respuesta:
A51: Considerará los tiempos que a las instituciones les toma dar respuesta a un trámite desde que reciben la solicitud del administrado hasta la finalización del mismo. Para la definición del tiempo se considerará un caso estándar.
A52: Para determinar la puntuación, se colocará en una tabla todos los trámites con el tiempo de respuesta, ordenándose de menor a mayor. Se dividirá en 4 grupos, en los que cada uno contenga la misma cantidad de trámites.
A53: Para realizar el registro realice lo siguiente:
A54: 1.- Seleccione la hoja TIEMPO DE RESPUESTA
A55: 2.- Ingrese los trámites de la institución registrando el identificador y nombre en las columnas respectivas. Si usted requiere de acuerdo al número de trámites copie filas adicionales que estén dentro del cuadro
A56: 3.- Para cada trámite debe especificar en la columna TIEMPO RESPUESTA el tiempo, de acuerdo a lo mencionado anteriormente.
A57: 4.- Una vez terminado el llenado solicitado presione el botón PUNTUACIÓN.
A58: 5.- Usted visualizará el ordenamiento de los trámites ingresados de acuerdo al número de volumen o frecuencia anual.
A59: 6.- Así mismo, usted visualizará el puntaje obtenido en la columna PUNTUACIÓN de acuerdo al grupo obtenido por cada trámite de acuerdo al número de volumen o frecuencia anual cosiderando lo siguiente: La puntuación considera lo siguiente: ** Primer grupo (menor o igual a 40 horas laboralres) = 0 ** Segundo grupo mayor 40 horas laboralres) = 30
A60: e) Canal de atención:
A61: Considerará los canales de atención a través de los cuales el administrado puede iniciar el trámite.
A62: Para realizar el registro realice lo siguiente:
A63: 1.- Seleccione la hoja CANAL ATENCIÓN
A64: 2.- Ingrese los trámites de la institución registrando el identificador y nombre en las columnas respectivas. Si usted requiere de acuerdo al número de trámites copie filas adicionales que estén dentro del cuadro
A65: 3.- Para cada trámite debe seleccionar el canal de atención del trámite en la columna CANAL ATENCIÓN, que pueden ser: El trámite se puede completar totalmente en línea: Se considera trámite totalmente en línea cuando el administrado no requiere realizar ninguna interacción presencial con la institución = 0 El trámite no se puede completar totalmente en línea: Se considera este caso, cuando el trámite incluye al menos una actividad, incluido mecanismos de pago, en la que el administrado deba acudir presencialmente a la institución, para la realización de dicho trámite. Los trámites presenciales se consideran dentro de esta categoría = 10
A66: 4.- De acuerdo a la selección usted obtendrá la puntuación del trámite que se visualizará en la columna PUNTUACIÓN.
A68: f) Resumen
A69: En esta hoja deberá consolidar todas las puntuaciones obtenidas para cada trámite en los criterios a) hasta e). Adicionalmente deberá analizar los criterios adicionales que dispone la norma técnica, para estos últimos solamente deberá seleccionar en la celda correspondiente y la matriz asignará la puntuación adicional. Los criterios que deberá considerar son: - NECESIDADES CIUDADANAS: Si la institución ha implementado mecanismos para identificar necesidades ciudadanas respecto al trámite, seleccionar "SI", caso contrario, seleccionar "NO" - SUSCEPTIBILIDAD A CORRUPCIÓN: Si la institución dispone de información documentada sobre presuntos actos de corrupción, seleccionar "SI", caso contrario, seleccionar "NO" - VOLUMEN DE DEVOLUCIONES: Si la institución posee documentación sobre devoluciones del trámite en una cantidad significativa, seleccionar "SI", caso contrario, seleccionar "NO" Para que funcione la lista depelgable debe arrastrar la lista y la puntuación hacia abajo al último de los támites ingresados, no copiar
A70: En la columna puntaje total se realizará la sumatoria de los valores de los criterios básicos y adicionales. Este valor deberá registrarse en la plataforma GOB.EC

Sheet DEMANDA ANUAL
A1: PRIORIZACIÓN DE TRÁMITES ADMINISTRATIVOS
A2: DEMANDA ANUAL
A4: IDENTIFICADOR | B4: TRÁMITE | C4: DEMANDA ANUAL | D4: PUNTAJE
A5: CNT-002-01-07 | B5: Solicitud de Actualización de Datos de Servicio de Internet Fijo Masivo Persona Natural | C5: 0 | D5: 0
A6: CNT-001-01-17 | B6: Solicitud de Cambio de Entidad Financiera para el Pago de Servicio Móvil Avanzado (SMA) Masivo Persona Natural | C6: 0 | D6: 0
A7: CNT-002-01-12 | B7: Solicitud de Cambio de Forma de Pago de Servicio de Internet Fijo Masivo Persona Natural | C7: 0 | D7: 0
A8: CNT-001-01-06 | B8: Solicitud de Cambio de Número de Servicio Móvil Avanzado (SMA) Masivo Persona Natural | C8: 0 | D8: 0
A9: CNT-002-01-17 | B9: Solicitud de Cesión de Derechos de Servicio de Internet Fijo Masivo Persona Natural | C9: 0 | D9: 0
A10: CNT-001-01-18 | B10: Solicitud de Cesión de Derechos de Servicio Móvil Avanzado (SMA) Masivo Persona Natural | C10: 0 | D10: 0
A11: CNT-002-01-06 | B11: Solicitud de Convenio de Pago de Servicio de Internet Fijo Masivo Persona Natural | C11: 0 | D11: 0
A12: CNT-002-01-03 | B12: Solicitud de Creación de cuentas adicionales de Correo de Servicio de Internet Fijo Masivo Persona Natural | C12: 0 | D12: 0
A13: CNT-002-01-10 | B13: Solicitud de Descuento por discapacidad de Servicio de Internet Fijo Masivo Persona Natural | C13: 0 | D13: 0
A14: CNT-001-01-13 | B14: Solicitud de detalle de llamadas de Servicio Móvil Avanzado (SMA) Masivo Persona Natural | C14: 0 | D14: 0
A15: CNT-002-01-05 | B15: Solicitud de Detalle de Navegación de Servicio de Internet Fijo Masivo Persona Natural | C15: 0 | D15: 0
A16: CNT-001-01-14 | B16: Solicitud de pasa saldo de Servicio Móvil Avanzado (SMA) Masivo Persona Natural | C16: 0 | D16: 0
A17: CNT-002-01-08 | B17: Solicitud de Plan Estudiantil de Servicio de Internet Fijo Masivo Persona Natural | C17: 0 | D17: 0
A18: CNT-002-01-15 | B18: Solicitud de Queja Técnica de Servicio de Internet Fijo Masivo Persona Jurídica | C18: 0 | D18: 0
A19: CNT-001-01-20 | B19: Solicitud de Queja Técnica de Servicio Móvil Avanzado (SMA) Masivo Persona Natural | C19: 0 | D19: 0
A20: CNT-001-01-15 | B20: Solicitud de Recargas con cargo a factura o débito bancario de Servicio Móvil Avanzado (SMA) Masivo Persona Natural | C20: 0 | D20: 0
A21: CNT-002-01-14 | B21: Solicitud de Reclamo de Facturación de Servicio de Internet Fijo Masivo Persona Natural | C21: 0 | D21: 0
A22: CNT-001-01-16 | B22: Solicitud de Reclamo de Facturación de Servicio Móvil Avanzado (SMA) Masivo Persona Natural | C22: 0 | D22: 0
A23: CNT-002-01-04 | B23: Solicitud de Suspensión temporal de Servicio de Internet Fijo Masivo Persona Natural | C23: 0 | D23: 0
A24: CNT-001-01-12 | B24: Solicitud para Número Reservado de Servicio Móvil Avanzado (SMA) Masivo Persona Natural | C24: 0 | D24: 0
A25: CNT-001-01-11 | B25: Solicitud de Roaming de Servicio de Servicio Móvil Avanzado (SMA) Masivo Persona Natural | C25: 71 | D25: 3
A26: CNT-001-01-10 | B26: Solicitud de Cambio de Equipo Móvil (Robo-Pérdida-Daño) de Servicio Móvil Avanzado (SMA) Masivo Persona Natural | C26: 602 | D26: 3
A27: CNT-001-01-08 | B27: Solicitud de Reposición de Simcard (Robo-Pérdida-Daño) de Servicio Móvil Avanzado (SMA) Masivo Persona Natural | C27: 1196 | D27: 3
A28: CNT-001-01-09 | B28: Solicitud de Suspensión por Robo o Pérdida de Equipo de Servicio Móvil Avanzado (SMA) Masivo Persona Natural | C28: 1798 | D28: 3
A29: CNT-002-01-11 | B29: Solicitud de Traslado de Servicio de Internet Fijo Masivo Persona Natural | C29: 2560 | D29: 3
A30: CNT-001-01-03 | B30: Solicitud de Servicio Móvil Avanzado (SMA) Portabilidad Prepago Masivo Persona Natural | C30: 5045 | D30: 6
A31: CNT-002-01-02 | B31: Solicitud de Cambio de Plan - Velocidad de Servicio de Internet Fijo Masivo Persona Natural | C31: 6560 | D31: 6
A32: CNT-001-01-04 | B32: Solicitud de Servicio Móvil Avanzado (SMA) Portabilidad Postpago Masivo Persona Natural | C32: 12651 | D32: 6
A33: CNT-001-01-01 | B33: Solicitud de Servicio Móvil Avanzado (SMA) Prepago Masivo Persona Natural | C33: 21142 | D33: 6
A34: CNT-001-01-02 | B34: Solicitud de Servicio Móvil Avanzado (SMA) Postpago Masivo Persona Natural | C34: 33182 | D34: 6
A35: CNT-002-01-01 | B35: Solicitud de Plan Hogar de Servicio de Internet Fijo Masivo Persona Natural | C35: 54230 | D35: 10
A36: CNT-001-01-19 | B36: Consulta de valores a pagar o estado de pago por valores pendientes de Servicio Móvil Avanzado (SMA) Persona Natural (en los Centros de atención). | C36: 70086 | D36: 10
A37: CNT-002-01-16 | B37: Consulta de valores a pagar o estado de pago por valores pendientes de Servicio Internet Fijo Masivo Persona Natural (en los Centros de atención). | C37: 75315 | D37: 10
A38: CNT-001-01-07 | B38: Solicitud de Cambio de Plan de Servicio Móvil Avanzado (SMA) Masivo Persona Natural | C38: 125445 | D38: 10
A39: CNT-001-01-05 | B39: Solicitud de Activación de Paquetes de voz de Servicio Móvil Avanzado (SMA) Masivo Persona Natural | C39: 133399 | D39: 10
A40: CNT-002-01-13 | B40: Solicitud de Cancelación de Servicios del Servicio de Internet Fijo Masivo Persona Natural | C40: 134859 | D40: 10
A41: CNT-002-01-09 | B41: Solicitud de Cambio de Módem de Servicio de Internet Fijo Masivo Persona Natural | C41: 252831 | D41: 10

Sheet VOLUMEN DE QUEJAS
A1: PRIORIZACIÓN DE TRÁMITES ADMINISTRATIVOS
A2: VOLUMEN DE QUEJAS
A4: IDENTIFICADOR | B4: TRÁMITE | C4: VOLUMEN DEMANDA | D4: VOLUMEN DE QUEJAS | E4: PORCENTAJE | F4: PUNTUACIÓN
A5: CNT-002-01-07 | B5: Solicitud de Actualización de Datos de Servicio de Internet Fijo Masivo Persona Natural | C5: 0 | D5: 0 | E5: 0 | F5: 0
A6: CNT-001-01-17 | B6: Solicitud de Cambio de Entidad Financiera para el Pago de Servicio Móvil Avanzado (SMA) Masivo Persona Natural | C6: 0 | D6: 0 | E6: 0 | F6: 0
A7: CNT-002-01-12 | B7: Solicitud de Cambio de Forma de Pago de Servicio de Internet Fijo Masivo Persona Natural | C7: 0 | D7: 0 | E7: 0 | F7: 0
A8: CNT-001-01-06 | B8: Solicitud de Cambio de Número de Servicio Móvil Avanzado (SMA) Masivo Persona Natural | C8: 0 | D8: 0 | E8: 0 | F8: 0
A9: CNT-002-01-17 | B9: Solicitud de Cesión de Derechos de Servicio de Internet Fijo Masivo Persona Natural | C9: 0 | D9: 0 | E9: 0 | F9: 0
A10: CNT-001-01-18 | B10: Solicitud de Cesión de Derechos de Servicio Móvil Avanzado (SMA) Masivo Persona Natural | C10: 0 | D10: 0 | E10: 0 | F10: 0
A11: CNT-002-01-06 | B11: Solicitud de Convenio de Pago de Servicio de Internet Fijo Masivo Persona Natural | C11: 0 | D11: 0 | E11: 0 | F11: 0
A12: CNT-002-01-03 | B12: Solicitud de Creación de cuentas adicionales de Correo de Servicio de Internet Fijo Masivo Persona Natural | C12: 0 | D12: 0 | E12: 0 | F12: 0
A13: CNT-002-01-10 | B13: Solicitud de Descuento por discapacidad de Servicio de Internet Fijo Masivo Persona Natural | C13: 0 | D13: 0 | E13: 0 | F13: 0
A14: CNT-001-01-13 | B14: Solicitud de detalle de llamadas de Servicio Móvil Avanzado (SMA) Masivo Persona Natural | C14: 0 | D14: 0 | E14: 0 | F14: 0
A15: CNT-002-01-05 | B15: Solicitud de Detalle de Navegación de Servicio de Internet Fijo Masivo Persona Natural | C15: 0 | D15: 0 | E15: 0 | F15: 0
A16: CNT-001-01-14 | B16: Solicitud de pasa saldo de Servicio Móvil Avanzado (SMA) Masivo Persona Natural | C16: 0 | E16: 0 | F16: 0
A17: CNT-002-01-08 | B17: Solicitud de Plan Estudiantil de Servicio de Internet Fijo Masivo Persona Natural | C17: 0 | D17: 0 | E17: 0 | F17: 0
A18: CNT-002-01-15 | B18: Solicitud de Queja Técnica de Servicio de Internet Fijo Masivo Persona Jurídica | C18: 0 | D18: 0 | E18: 0 | F18: 0
A19: CNT-001-01-20 | B19: Solicitud de Queja Técnica de Servicio Móvil Avanzado (SMA) Masivo Persona Natural | C19: 0 | D19: 0 | E19: 0 | F19: 0
A20: CNT-001-01-15 | B20: Solicitud de Recargas con cargo a factura o débito bancario de Servicio Móvil Avanzado (SMA) Masivo Persona Natural | C20: 0 | D20: 0 | E20: 0 | F20: 0
A21: CNT-002-01-14 | B21: Solicitud de Reclamo de Facturación de Servicio de Internet Fijo Masivo Persona Natural | C21: 0 | D21: 0 | E21: 0 | F21: 0
A22: CNT-001-01-16 | B22: Solicitud de Reclamo de Facturación de Servicio Móvil Avanzado (SMA) Masivo Persona Natural | C22: 0 | D22: 0 | E22: 0 | F22: 0
A23: CNT-002-01-04 | B23: Solicitud de Suspensión temporal de Servicio de Internet Fijo Masivo Persona Natural | C23: 0 | D23: 0 | E23: 0 | F23: 0
A24: CNT-001-01-12 | B24: Solicitud para Número Reservado de Servicio Móvil Avanzado (SMA) Masivo Persona Natural | C24: 0 | D24: 0 | E24: 0 | F24: 0
A25: CNT-001-01-11 | B25: Solicitud de Roaming de Servicio de Servicio Móvil Avanzado (SMA) Masivo Persona Natural | C25: 71 | D25: 0 | E25: 0 | F25: 0
A26: CNT-001-01-10 | B26: Solicitud de Cambio de Equipo Móvil (Robo-Pérdida-Daño) de Servicio Móvil Avanzado (SMA) Masivo Persona Natural | C26: 602 | D26: 0 | E26: 0 | F26: 0
A27: CNT-001-01-08 | B27: Solicitud de Reposición de Simcard (Robo-Pérdida-Daño) de Servicio Móvil Avanzado (SMA) Masivo Persona Natural | C27: 1196 | D27: 0 | E27: 0 | F27: 0
A28: CNT-001-01-09 | B28: Solicitud de Suspensión por Robo o Pérdida de Equipo de Servicio Móvil Avanzado (SMA) Masivo Persona Natural | C28: 1798 | D28: 0 | E28: 0 | F28: 0
A29: CNT-002-01-11 | B29: Solicitud de Traslado de Servicio de Internet Fijo Masivo Persona Natural | C29: 2560 | D29: 0 | E29: 0 | F29: 0
A30: CNT-001-01-03 | B30: Solicitud de Servicio Móvil Avanzado (SMA) Portabilidad Prepago Masivo Persona Natural | C30: 5045 | D30: 0 | E30: 0 | F30: 0
A31: CNT-002-01-02 | B31: Solicitud de Cambio de Plan - Velocidad de Servicio de Internet Fijo Masivo Persona Natural | C31: 6560 | D31: 0 | E31: 0 | F31: 0
A32: CNT-001-01-04 | B32: Solicitud de Servicio Móvil Avanzado (SMA) Portabilidad Postpago Masivo Persona Natural | C32: 12651 | D32: 0 | E32: 0 | F32: 0
A33: CNT-001-01-01 | B33: Solicitud de Servicio Móvil Avanzado (SMA) Prepago Masivo Persona Natural | C33: 21142 | D33: 0 | E33: 0 | F33: 0
A34: CNT-001-01-02 | B34: Solicitud de Servicio Móvil Avanzado (SMA) Postpago Masivo Persona Natural | C34: 33182 | D34: 0 | E34: 0 | F34: 0
A35: CNT-002-01-01 | B35: Solicitud de Plan Hogar de Servicio de Internet Fijo Masivo Persona Natural | C35: 54230 | D35: 0 | E35: 0 | F35: 0
A36: CNT-001-01-19 | B36: Consulta de valores a pagar o estado de pago por valores pendientes de Servicio Móvil Avanzado (SMA) Persona Natural (en los Centros de atención). | C36: 70086 | D36: 0 | E36: 0 | F36: 0
A37: CNT-002-01-16 | B37: Consulta de valores a pagar o estado de pago por valores pendientes de Servicio Internet Fijo Masivo Persona Natural (en los Centros de atención). | C37: 75315 | D37: 0 | E37: 0 | F37: 0
A38: CNT-001-01-07 | B38: Solicitud de Cambio de Plan de Servicio Móvil Avanzado (SMA) Masivo Persona Natural | C38: 125445 | D38: 0 | E38: 0 | F38: 0
A39: CNT-001-01-05 | B39: Solicitud de Activación de Paquetes de voz de Servicio Móvil Avanzado (SMA) Masivo Persona Natural | C39: 133399 | D39: 0 | E39: 0 | F39: 0
A40: CNT-002-01-13 | B40: Solicitud de Cancelación de Servicios del Servicio de Internet Fijo Masivo Persona Natural | C40: 134859 | D40: 0 | E40: 0 | F40: 0
A41: CNT-002-01-09 | B41: Solicitud de Cambio de Módem de Servicio de Internet Fijo Masivo Persona Natural | C41: 252831 | D41: 0 | E41: 0 | F41: 0

Sheet TIEMPO DE RESPUESTA
A1: PRIORIZACIÓN DE TRÁMITES ADMINISTRATIVOS
A2: TIEMPO DE RESPUESTA
A4: IDENTIFICADOR | B4: TRÁMITE | C4: TIEMPO RESPUESTA (horas laborables) | D4: PUNTUACIÓN
A5: CNT-002-01-07 | B5: Solicitud de Actualización de Datos de Servicio de Internet Fijo Masivo Persona Natural | C5: 0.1 | D5: 0
A6: CNT-001-01-17 | B6: Solicitud de Cambio de Entidad Financiera para el Pago de Servicio Móvil Avanzado (SMA) Masivo Persona Natural | C6: 0.25 | D6: 0
A7: CNT-002-01-12 | B7: Solicitud de Cambio de Forma de Pago de Servicio de Internet Fijo Masivo Persona Natural | C7: 0.25 | D7: 0
A8: CNT-001-01-06 | B8: Solicitud de Cambio de Número de Servicio Móvil Avanzado (SMA) Masivo Persona Natural | C8: 0.33 | D8: 0
A9: CNT-002-01-17 | B9: Solicitud de Cesión de Derechos de Servicio de Internet Fijo Masivo Persona Natural | C9: 0.25 | D9: 0
A10: CNT-001-01-18 | B10: Solicitud de Cesión de Derechos de Servicio Móvil Avanzado (SMA) Masivo Persona Natural | C10: 0.25 | D10: 0
A11: CNT-002-01-06 | B11: Solicitud de Convenio de Pago de Servicio de Internet Fijo Masivo Persona Natural | C11: 0.25 | D11: 0
A12: CNT-002-01-03 | B12: Solicitud de Creación de cuentas adicionales de Correo de Servicio de Internet Fijo Masivo Persona Natural | C12: 0.16 | D12: 0
A13: CNT-002-01-10 | B13: Solicitud de Descuento por discapacidad de Servicio de Internet Fijo Masivo Persona Natural | C13: 0.25 | D13: 0
A14: CNT-001-01-13 | B14: Solicitud de detalle de llamadas de Servicio Móvil Avanzado (SMA) Masivo Persona Natural | C14: 0.45 | D14: 0
A15: CNT-002-01-05 | B15: Solicitud de Detalle de Navegación de Servicio de Internet Fijo Masivo Persona Natural | C15: 0.16 | D15: 0
A16: CNT-001-01-14 | B16: Solicitud de pasa saldo de Servicio Móvil Avanzado (SMA) Masivo Persona Natural | C16: 0.08 | D16: 0
A17: CNT-002-01-08 | B17: Solicitud de Plan Estudiantil de Servicio de Internet Fijo Masivo Persona Natural | C17: 72 | D17: 30
A18: CNT-002-01-15 | B18: Solicitud de Queja Técnica de Servicio de Internet Fijo Masivo Persona Natural | C18: 48 | D18: 30
A19: CNT-001-01-20 | B19: Solicitud de Queja Técnica de Servicio Móvil Avanzado (SMA) Masivo Persona Natural | C19: 0.25 | D19: 0
A20: CNT-001-01-15 | B20: Solicitud de Recargas con cargo a factura o débito bancario de Servicio Móvil Avanzado (SMA) Masivo Persona Natural | C20: 0.1 | D20: 0
A21: CNT-002-01-14 | B21: Solicitud de Reclamo de Facturación de Servicio de Internet Fijo Masivo Persona Natural | C21: 48 | D21: 30
A22: CNT-001-01-16 | B22: Solicitud de Reclamo de Facturación de Servicio Móvil Avanzado (SMA) Masivo Persona Natural | C22: 48 | D22: 30
A23: CNT-002-01-04 | B23: Solicitud de Suspensión temporal de Servicio de Internet Fijo Masivo Persona Natural | C23: 0.13 | D23: 0
A24: CNT-001-01-12 | B24: Solicitud para Número Reservado de Servicio Móvil Avanzado (SMA) Masivo Persona Natural | C24: 0.3 | D24: 0
A25: CNT-001-01-11 | B25: Solicitud de Roaming de Servicio de Servicio Móvil Avanzado (SMA) Masivo Persona Natural | C25: 0.41 | D25: 0
A26: CNT-001-01-10 | B26: Solicitud de Cambio de Equipo Móvil (Robo-Pérdida-Daño) de Servicio Móvil Avanzado (SMA) Masivo Persona Natural | C26: 0.58 | D26: 0
A27: CNT-001-01-08 | B27: Solicitud de Reposición de Simcard (Robo-Pérdida-Daño) de Servicio Móvil Avanzado (SMA) Masivo Persona Natural | C27: 0.5 | D27: 0
A28: CNT-001-01-09 | B28: Solicitud de Suspensión por Robo o Pérdida de Equipo de Servicio Móvil Avanzado (SMA) Masivo Persona Natural | C28: 0.1 | D28: 0
A29: CNT-002-01-11 | B29: Solicitud de Traslado de Servicio de Internet Fijo Masivo Persona Natural | C29: 72 | D29: 30
A30: CNT-001-01-03 | B30: Solicitud de Servicio Móvil Avanzado (SMA) Portabilidad Prepago Masivo Persona Natural | C30: 72 | D30: 30
A31: CNT-002-01-02 | B31: Solicitud de Cambio de Plan - Velocidad de Servicio de Internet Fijo Masivo Persona Natural | C31: 0.13 | D31: 0
A32: CNT-001-01-04 | B32: Solicitud de Servicio Móvil Avanzado (SMA) Portabilidad Postpago Masivo Persona Natural | C32: 72 | D32: 30
A33: CNT-001-01-01 | B33: Solicitud de Servicio Móvil Avanzado (SMA) Prepago Masivo Persona Natural | C33: 0.33 | D33: 0
A34: CNT-001-01-02 | B34: Solicitud de Servicio Móvil Avanzado (SMA) Postpago Masivo Persona Natural | C34: 0.75 | D34: 0
A35: CNT-002-01-01 | B35: Solicitud de Plan Hogar de Servicio de Internet Fijo Masivo Persona Natural | C35: 72 | D35: 30
A36: CNT-001-01-19 | B36: Consulta de valores a pagar o estado de pago por valores pendientes de Servicio Móvil Avanzado (SMA) Persona Natural (en los Centros de atención). | C36: 0.25 | D36: 0
A37: CNT-002-01-16 | B37: Consulta de valores a pagar o estado de pago por valores pendientes de Servicio Internet Fijo Masivo Persona Natural (en los Centros de atención). | C37: 0.25 | D37: 0
A38: CNT-001-01-07 | B38: Solicitud de Cambio de Plan de Servicio Móvil Avanzado (SMA) Masivo Persona Natural | C38: 0.11 | D38: 0
A39: CNT-001-01-05 | B39: Solicitud de Activación de Paquetes de voz de Servicio Móvil Avanzado (SMA) Masivo Persona Natural | C39: 0.1 | D39: 0
A40: CNT-002-01-13 | B40: Solicitud de Cancelación de Servicios del Servicio de Internet Fijo Masivo Persona Natural | C40: 216 | D40: 30
A41: CNT-002-01-09 | B41: Solicitud de Cambio de Módem de Servicio de Internet Fijo Masivo Persona Natural | C41: 72 | D41: 30

Sheet COSTO ADMINISTRACIÓN PÚBLICA
A1: PRIORIZACIÓN DE TRÁMITES ADMINISTRATIVOS
A2: COSTOS PARA LA ADMINISTRACIÓN PÚBLICA
A4: IDENTIFICADOR | B4: TRÁMITE | C4: INSUMOS PARA COSTO | F4: COSTO PARA LA ADM. PÚBLICA | H4: SBU | I4: 400
C5: TIEMPO (HORAS) | D5: COSTO PERSONAL | E5: COSTO RECURSOS
A6: CNT-001-01-01 | B6: Solicitud de Servicio Móvil Avanzado (SMA) Prepago Masivo Persona Natural | C6: 0.4 | D6: =C6*$I$4/160 -> 1 | E6: 0.9061592949 | F6: =D6+E6 -> 1.906159295
A7: CNT-001-01-02 | B7: Solicitud de Servicio Móvil Avanzado (SMA) Postpago Masivo Persona Natural | C7: 0.5 | D7: =C7*$I$4/160 -> 1.25 | E7: 1.284159295 | F7: =D7+E7 -> 2.534159295
A8: CNT-001-01-03 | B8: Solicitud de Servicio Móvil Avanzado (SMA) Portabilidad Prepago Masivo Persona Natural | C8: 0.3333333333 | D8: 0.8333333333 | E8: 0.9061592949 | F8: 1.739492628
A9: CNT-001-01-04 | B9: Solicitud de Servicio Móvil Avanzado (SMA) Portabilidad Postpago Masivo Persona Natural | C9: 0.6666666667 | D9: 1.666666667 | E9: 1.284159295 | F9: 2.950825962
A10: CNT-001-01-05 | B10: Solicitud de Activación de Paquetes de voz de Servicio Móvil Avanzado (SMA) Masivo Persona Natural | C10: 0.3833333333 | D10: 0.9583333333 | E10: 0.6901592949 | F10: 1.648492628
A11: CNT-001-01-06 | B11: Solicitud de Cambio de Número de Servicio Móvil Avanzado (SMA) Masivo Persona Natural | C11: 0.3666666667 | D11: 0.9166666667 | E11: 0.7441592949 | F11: =D11+E11 -> 1.660825962
A12: CNT-001-01-07 | B12: Solicitud de Cambio de Plan de Servicio Móvil Avanzado (SMA) Masivo Persona Natural | C12: 0.4166666667 | D12: 1.041666667 | E12: 1.122159295 | F12: 2.163825962
A13: CNT-001-01-08 | B13: Solicitud de Reposición de Simcard (Robo-Pérdida-Daño) de Servicio Móvil Avanzado (SMA) Masivo Persona Natural | C13: 0.4 | D13: 1 | E13: 0.7981592949 | F13: 1.798159295
A14: CNT-001-01-09 | B14: Solicitud de Suspensión por Robo o Pérdida de Equipo de Servicio Móvil Avanzado (SMA) Masivo Persona Natural | C14: 0.25 | D14: 0.625 | E14: 0.5281592949 | F14: 1.153159295
A15: CNT-001-01-10 | B15: Solicitud de Cambio de Equipo Móvil (Robo-Pérdida-Daño) de Servicio Móvil Avanzado (SMA) Masivo Persona Natural | C15: 1.2 | D15: 3 | E15: 1.014159295 | F15: 4.014159295
A16: CNT-001-01-11 | B16: Solicitud de Roaming de Servicio de Servicio Móvil Avanzado (SMA) Masivo Persona Natural | C16: 0.4166666667 | D16: 1.041666667 | E16: 0.9061592949 | F16: 1.947825962
A17: CNT-001-01-12 | B17: Solicitud para Número Reservado de Servicio Móvil Avanzado (SMA) Masivo Persona Natural | C17: 0.4166666667 | D17: 1.041666667 | E17: 0.6901592949 | F17: 1.731825962
A18: CNT-001-01-13 | B18: Solicitud de detalle de llamadas de Servicio Móvil Avanzado (SMA) Masivo Persona Natural | C18: 0.3333333333 | D18: 0.8333333333 | E18: 0.7981592949 | F18: 1.631492628
A19: CNT-001-01-14 | B19: Solicitud de pasa saldo de Servicio Móvil Avanzado (SMA) Masivo Persona Natural | C19: 0 | D19: 0 | E19: 0 | F19: 0
A20: CNT-001-01-15 | B20: Solicitud de Recargas con cargo a factura o débito bancario de Servicio Móvil Avanzado (SMA) Masivo Persona Natural | C20: 0 | D20: 0 | E20: 0 | F20: =D20+E20 -> 0
A21: CNT-001-01-16 | B21: Solicitud de Reclamo de Facturación de Servicio Móvil Avanzado (SMA) Masivo Persona Natural | C21: 1.466666667 | D21: 3.666666667 | E21: 0.5281592949 | F21: 4.194825962
A22: CNT-001-01-17 | B22: Solicitud de Cambio de Entidad Financiera para el Pago de Servicio Móvil Avanzado (SMA) Masivo Persona Natural | C22: 0.3833333333 | D22: 0.9583333333 | E22: 0.6901592949 | F22: 1.648492628
A23: CNT-001-01-18 | B23: Solicitud de Cesión de Derechos de Servicio Móvil Avanzado (SMA) Masivo Persona Natural | C23: 0.3666666667 | D23: 0.9166666667 | E23: 0.7981592949 | F23: 1.714825962
A24: CNT-001-01-19 | B24: Consulta de valores a pagar o estado de pago por valores pendientes de Servicio Móvil Avanzado (SMA) Persona Natural (en los Centros de atención). | C24: 0 | D24: 0 | E24: 0 | F24: 0
A25: CNT-001-01-20 | B25: Solicitud de Queja Técnica de Servicio Móvil Avanzado (SMA) Masivo Persona Natural | C25: 5.833333333 | D25: 14.58333333 | E25: 1.32631859 | F25: 15.90965192
A26: CNT-002-01-01 | B26: Solicitud de Plan Hogar de Servicio de Internet Fijo Masivo Persona Natural | C26: 4.55 | D26: 11.375 | E26: 1.068159295 | F26: 12.44315929
A27: CNT-002-01-02 | B27: Solicitud de Cambio de Plan - Velocidad de Servicio de Internet Fijo Masivo Persona Natural | C27: 0.4166666667 | D27: 1.041666667 | E27: 0.7981592949 | F27: 1.839825962
A28: CNT-002-01-03 | B28: Solicitud de Creación de cuentas adicionales de Correo de Servicio de Internet Fijo Masivo Persona Natural | C28: 0.3833333333 | D28: 0.9583333333 | E28: 0.7441592949 | F28: 1.702492628
A29: CNT-002-01-04 | B29: Solicitud de Suspensión temporal de Servicio de Internet Fijo Masivo Persona Natural | C29: 0.4166666667 | D29: 1.041666667 | E29: 0.6901592949 | F29: 1.731825962
A30: CNT-002-01-05 | B30: Solicitud de Detalle de Navegación de Servicio de Internet Fijo Masivo Persona Natural | C30: 0.8666666667 | D30: 2.166666667 | E30: 0.5281592949 | F30: 2.694825962
A31: CNT-002-01-06 | B31: Solicitud de Convenio de Pago de Servicio de Internet Fijo Masivo Persona Natural | C31: 0.4666666667 | D31: 1.166666667 | E31: 0.6901592949 | F31: 1.856825962
A32: CNT-002-01-07 | B32: Solicitud de Actualización de Datos de Servicio de Internet Fijo Masivo Persona Natural | C32: 0.4166666667 | D32: 1.041666667 | E32: 0.5281592949 | F32: 1.569825962
A33: CNT-002-01-08 | B33: Solicitud de Plan Estudiantil de Servicio de Internet Fijo Masivo Persona Natural | C33: 4.55 | D33: 11.375 | E33: 1.068159295 | F33: 12.44315929
A34: CNT-002-01-09 | B34: Solicitud de Cambio de Módem de Servicio de Internet Fijo Masivo Persona Natural | C34: 4.3 | D34: 10.75 | E34: 0.5281592949 | F34: 11.27815929
A35: CNT-002-01-10 | B35: Solicitud de Descuento por discapacidad de Servicio de Internet Fijo Masivo Persona Natural | C35: 0.4666666667 | D35: 1.166666667 | E35: 0.7981592949 | F35: 1.964825962
A36: CNT-002-01-11 | B36: Solicitud de Traslado de Servicio de Internet Fijo Masivo Persona Natural | C36: 4.416666667 | D36: 11.04166667 | E36: 0.6901592949 | F36: 11.73182596
A37: CNT-002-01-12 | B37: Solicitud de Cambio de Forma de Pago de Servicio de Internet Fijo Masivo Persona Natural | C37: 0.3833333333 | D37: 0.9583333333 | E37: 0.6901592949 | F37: 1.648492628
A38: CNT-002-01-13 | B38: Solicitud de Cancelación de Servicios del Servicio de Internet Fijo Masivo Persona Natural | C38: 1.466666667 | D38: 3.666666667 | E38: 0.6901592949 | F38: 4.356825962
A39: CNT-002-01-14 | B39: Solicitud de Reclamo de Facturación de Servicio de Internet Fijo Masivo Persona Natural | C39: 0.8 | D39: 2 | E39: 0.5821592949 | F39: 2.582159295
A40: CNT-002-01-15 | B40: Solicitud de Queja Técnica de Servicio de Internet Fijo Masivo Persona Jurídica | C40: 4.383333333 | D40: 10.95833333 | E40: 0.5821592949 | F40: 11.54049263
A41: CNT-002-01-16 | B41: Consulta de valores a pagar o estado de pago por valores pendientes de Servicio Internet Fijo Masivo Persona Natural (en los Centros de atención). | C41: 0 | D41: 0 | E41: 0 | F41: 0
A42: CNT-002-01-17 | B42: Solicitud de Cesión de Derechos de Servicio de Internet Fijo Masivo Persona Natural | C42: 0.4666666667 | D42: 1.166666667 | E42: 0.7981592949 | F42: 1.964825962

Sheet AUXILIAR COSTO RECURSO (hidden)
A1: SMA
A2: TRÁMITE: | B2: Solicitud de Servicio Móvil Avanzado (SMA) Prepago Masivo Persona Natural | E2: =+[1]Lic!$G$8 -> 0.5281592949 | F2: COSTO POR USO TRANSACCIONAL POR TRÁMITE
A3: NO. | B3: ACTIVIDAD | C3: COSTO
A4: 1 | B4: Sistema Transaccional | C4: =E2 -> 0.5281592949
A5: 2 | B5: Impresora | C5: 0
A6: 3 | B6: Impresión contrato y/o Solicitud (1 hojas) | C6: ='[2]AUXILIAR COSTO IMPRESIONES'!B3 -> 0.054
A7: 4 | B7: Emisión de factura para pago (3 hojas) | C7: ='[2]AUXILIAR COSTO IMPRESIONES'!B3*3 -> 0.162
A8: 5 | B8: Copia cédula (1 hoja) | C8: ='[2]AUXILIAR COSTO IMPRESIONES'!B3*2 -> 0.108
A9: 6 | B9: Copia DINARDAP (1 hoja) | C9: ='[2]AUXILIAR COSTO IMPRESIONES'!B3 -> 0.054
A10: 6 | B10: Simcard | C10: 0
B12: SUMATORIA ACTIVIDADES | C12: =SUM(C4:C11) -> 0.9061592949
A14: TRÁMITE: | B14: Solicitud de Servicio Móvil Avanzado (SMA) Postpago Masivo Persona Natural
A15: NO. | B15: ACTIVIDAD | C15: COSTO
A16: 1 | B16: Sistema Transaccional | C16: =E2 -> 0.5281592949
A17: 2 | B17: Impresora | C17: 0
A18: 3 | B18: Impresión contrato y/o Solicitud (7 hojas) | C18: ='[2]AUXILIAR COSTO IMPRESIONES'!B3*7 -> 0.378
A19: 4 | B19: Emisión de factura para pago (3 hojas) | C19: ='[2]AUXILIAR COSTO IMPRESIONES'!B3*3 -> 0.162
A20: 5 | B20: Copia cédula (1 hoja) | C20: ='[2]AUXILIAR COSTO IMPRESIONES'!B3*2 -> 0.108
A21: 6 | B21: Copia DINARDAP (1 hoja) | C21: ='[2]AUXILIAR COSTO IMPRESIONES'!B3 -> 0.054
A22: 7 | B22: Buró de crédito (1 hoja) | C22: ='[2]AUXILIAR COSTO IMPRESIONES'!B3 -> 0.054
A23: 8 | B23: Simcard | C23: 0
B24: SUMATORIA ACTIVIDADES | C24: =SUM(C16:C23) -> 1.284159295
A26: TRÁMITE: | B26: Solicitud de Servicio Móvil Avanzado (SMA) Portabilidad Prepago Masivo Persona Natural
A27: NO. | B27: ACTIVIDAD | C27: COSTO
A28: 1 | B28: Sistema Transaccional | C28: =E2 -> 0.5281592949
A29: 2 | B29: Impresora | C29: 0
A30: 3 | B30: Impresión contrato y/o Solicitud (1 hoja) | C30: ='[2]AUXILIAR COSTO IMPRESIONES'!B3 -> 0.054
A31: 4 | B31: Impresión Solicitud de Portabilidad (1 hoja) | C31: ='[2]AUXILIAR COSTO IMPRESIONES'!B3 -> 0.054
A32: 5 | B32: Emisión de factura para pago (3 hojas) | C32: ='[2]AUXILIAR COSTO IMPRESIONES'!B3*3 -> 0.162
A33: 6 | B33: Copia cédula (1 hoja) | C33: ='[2]AUXILIAR COSTO IMPRESIONES'!B3 -> 0.054
A34: 7 | B34: Copia DINARDAP (1 hoja) | C34: ='[2]AUXILIAR COSTO IMPRESIONES'!B3 -> 0.054
A35: 8 | B35: Simcard | C35: 0
B36: SUMATORIA ACTIVIDADES | C36: =SUM(C28:C35) -> 0.9061592949
A38: TRÁMITE: | B38: Solicitud de Servicio Móvil Avanzado (SMA) Portabilidad Postpago Masivo Persona Natural
A39: NO. | B39: ACTIVIDAD | C39: COSTO
A40: 1 | B40: Sistema Transaccional | C40: =E2 -> 0.5281592949
A41: 2 | B41: Impresora | C41: 0
A42: 3 | B42: Impresión contrato y/o Solicitud (7 hojas) | C42: ='[2]AUXILIAR COSTO IMPRESIONES'!B3*7 -> 0.378
A43: 4 | B43: Impresión Solicitud de Portabilidad (1 hoja) | C43: ='[2]AUXILIAR COSTO IMPRESIONES'!B3 -> 0.054
A44: 5 | B44: Emisión de factura para pago (3 hojas) | C44: ='[2]AUXILIAR COSTO IMPRESIONES'!B3*3 -> 0.162
A45: 6 | B45: Copia cédula (1 hoja) | C45: ='[2]AUXILIAR COSTO IMPRESIONES'!B3 -> 0.054
A46: 7 | B46: Copia DINARDAP (1 hoja) | C46: ='[2]AUXILIAR COSTO IMPRESIONES'!B3 -> 0.054
A47: 8 | B47: Buró de crédito (1 hoja) | C47: ='[2]AUXILIAR COSTO IMPRESIONES'!B3 -> 0.054
A48: 9 | B48: Simcard | C48: 0
B49: SUMATORIA ACTIVIDADES | C49: =SUM(C40:C48) -> 1.284159295
A51: TRÁMITE: | B51: Solicitud de Activación de Paquetes de voz de Servicio Móvil Avanzado (SMA) Masivo Persona Natural
A52: NO. | B52: ACTIVIDAD | C52: COSTO
A53: 1 | B53: Sistema Transaccional | C53: =E2 -> 0.5281592949
A54: 2 | B54: Impresora | C54: 0
A55: 2 | B55: Impresión contrato y/o Solicitud (1 hoja) | C55: ='[2]AUXILIAR COSTO IMPRESIONES'!B3 -> 0.054
A56: 3 | B56: Copia cédula (1 hoja) | C56: ='[2]AUXILIAR COSTO IMPRESIONES'!B3*2 -> 0.108
B57: SUMATORIA ACTIVIDADES | C57: =SUM(C53:C56) -> 0.6901592949
A59: TRÁMITE: | B59: Solicitud de Cambio de Número de Servicio Móvil Avanzado (SMA) Masivo Persona Natural
A60: NO. | B60: ACTIVIDAD | C60: COSTO
A61: 1 | B61: Sistema Transaccional | C61: =E2 -> 0.5281592949
A62: 2 | B62: Impresora | C62: ='[2]AUXILIAR COSTO IMPRESIONES'!B3 -> 0.054
A63: 2 | B63: Impresión contrato y/o Solicitud (1 hoja) | C63: ='[2]AUXILIAR COSTO IMPRESIONES'!B3 -> 0.054
A64: 3 | B64: Copia cédula (1 hoja) | C64: ='[2]AUXILIAR COSTO IMPRESIONES'!B3*2 -> 0.108
A65: 4
A66: 5
B67: SUMATORIA ACTIVIDADES | C67: =SUM(C61:C66) -> 0.7441592949
A69: TRÁMITE: | B69: Solicitud de Cambio de Plan de Servicio Móvil Avanzado (SMA) Masivo Persona Natural
A70: NO. | B70: ACTIVIDAD | C70: COSTO
A71: 1 | B71: Sistema Transaccional | C71: =E2 -> 0.5281592949
A72: 2 | B72: Impresora | C72: 0
A73: 3 | B73: Impresión contrato y/o Solicitud (1 hoja) | C73: ='[2]AUXILIAR COSTO IMPRESIONES'!B3 -> 0.054
A74: 4 | B74: Impresión contrato y/o Solicitud (7 hojas)- cuando aplique | C74: ='[2]AUXILIAR COSTO IMPRESIONES'!B3*7 -> 0.378
A75: 5 | B75: Copia cédula (1 hoja) | C75: ='[2]AUXILIAR COSTO IMPRESIONES'!B3 -> 0.054
A76: 6 | B76: Copia DINARDAP (1 hoja)- cuando aplique | C76: ='[2]AUXILIAR COSTO IMPRESIONES'!B3 -> 0.054
A77: 7 | B77: Buró de crédito (1 hoja)- cuando aplique | C77: ='[2]AUXILIAR COSTO IMPRESIONES'!B3 -> 0.054
B81: SUMATORIA ACTIVIDADES | C81: =SUM(C71:C80) -> 1.122159295
A83: TRÁMITE: | B83: Solicitud de Reposición de Simcard (Robo-Pérdida-Daño) de Servicio Móvil Avanzado (SMA) Masivo Persona Natural
A84: NO. | B84: ACTIVIDAD | C84: COSTO
A85: 1 | B85: Sistema Transaccional | C85: =E2 -> 0.5281592949
A86: 2 | B86: Impresora | C86: 0
A87: 3 | B87: Emisión de factura para pago (3 hojas) | C87: ='[2]AUXILIAR COSTO IMPRESIONES'!B3*3 -> 0.162
A88: 4 | B88: Copia cédula (1 hoja) | C88: ='[2]AUXILIAR COSTO IMPRESIONES'!B3*2 -> 0.108
A89: 5 | B89: Simcard | C89: 0
B91: SUMATORIA ACTIVIDADES | C91: =SUM(C85:C90) -> 0.7981592949
A93: TRÁMITE: | B93: Solicitud de Suspensión por Robo o Pérdida de Equipo de Servicio Móvil Avanzado (SMA) Masivo Persona Natural
A94: NO. | B94: ACTIVIDAD | C94: COSTO
A95: 1 | B95: Sistema Transaccional | C95: =E2 -> 0.5281592949
A96: 2
A97: 3
A98: 4
B99: SUMATORIA ACTIVIDADES | C99: =SUM(C95:C98) -> 0.5281592949
A101: TRÁMITE: | B101: Solicitud de Cambio de Equipo Móvil (Robo-Pérdida-Daño) de Servicio Móvil Avanzado (SMA) Masivo Persona Natural
A102: NO. | B102: ACTIVIDAD | C102: COSTO
A103: 1 | B103: Sistema Transaccional | C103: =E2 -> 0.5281592949
A104: 2 | B104: Impresora | C104: ='[2]AUXILIAR COSTO IMPRESIONES'!B3 -> 0.054
A105: 3 | B105: Impresión contrato y/o Solicitud (1 hoja) | C105: ='[2]AUXILIAR COSTO IMPRESIONES'!B3 -> 0.054
A106: 4 | B106: Emisión de factura para pago (3 hojas) | C106: ='[2]AUXILIAR COSTO IMPRESIONES'!B3*3 -> 0.162
A107: 5 | B107: Copia cédula (1 hoja) | C107: ='[2]AUXILIAR COSTO IMPRESIONES'!B3*2 -> 0.108
A108: 6 | B108: Copia DINARDAP (1 hoja) | C108: ='[2]AUXILIAR COSTO IMPRESIONES'!B3 -> 0.054
A109: 7 | B109: Buró de crédito (1 hoja) | C109: ='[2]AUXILIAR COSTO IMPRESIONES'!B3 -> 0.054
A110: 8 | B110: Equipo móvil | C110: 0 | D110: Calculado en la tarifa del servicio
A111: 9 | B111: Funda regalo | C111: 0 | D111: Calculado en la tarifa del servicio
B112: SUMATORIA ACTIVIDADES | C112: =SUM(C103:C109) -> 1.014159295
A114: TRÁMITE: | B114: Solicitud de Roaming de Servicio de Servicio Móvil Avanzado (SMA) Masivo Persona Natural
A115: NO. | B115: ACTIVIDAD | C115: COSTO
A116: 1 | B116: Sistema Transaccional | C116: =E2 -> 0.5281592949
A117: 2 | B117: Impresora | C117: 0
A118: 2 | B118: Impresión Solicitud de Roaming (3 hojas) | C118: ='[2]AUXILIAR COSTO IMPRESIONES'!B3*3 -> 0.162
A119: 3 | B119: Copia cédula (1 hoja) | C119: ='[2]AUXILIAR COSTO IMPRESIONES'!B3*2 -> 0.108
A120: 4 | B120: Copia DINARDAP (1 hoja) | C120: ='[2]AUXILIAR COSTO IMPRESIONES'!B3 -> 0.054
A121: 5 | B121: Buró de crédito (1 hoja) | C121: ='[2]AUXILIAR COSTO IMPRESIONES'!B3 -> 0.054
B123: SUMATORIA ACTIVIDADES | C123: =SUM(C116:C121) -> 0.9061592949
A125: TRÁMITE: | B125: Solicitud para Número Reservado de Servicio Móvil Avanzado (SMA) Masivo Persona Natural
A126: NO. | B126: ACTIVIDAD | C126: COSTO
A127: 1 | B127: Sistema Transaccional | C127: =E2 -> 0.5281592949
A128: 2 | B128: Impresora | C128: 0
A129: 2 | B129: Impresión Solicitud de Número Reservado (1 hoja) | C129: ='[2]AUXILIAR COSTO IMPRESIONES'!B3 -> 0.054
A130: 3 | B130: Copia cédula (1 hoja) | C130: ='[2]AUXILIAR COSTO IMPRESIONES'!B3*2 -> 0.108
B132: SUMATORIA ACTIVIDADES | C132: =SUM(C127:C130) -> 0.6901592949
A134: TRÁMITE: | B134: Solicitud de detalle de llamadas de Servicio Móvil Avanzado (SMA) Masivo Persona Natural
A135: NO. | B135: ACTIVIDAD | C135: COSTO
A136: 1 | B136: Sistema Transaccional | C136: =E2 -> 0.5281592949
A137: 2 | B137: Impresora | C137: 0
A138: 3 | B138: Impresión de Detalle de llamadas (5 hojas) cuando aplique | C138: ='[2]AUXILIAR COSTO IMPRESIONES'!B3*5 -> 0.27
A139: 4
A140: 5
B141: SUMATORIA ACTIVIDADES | C141: =SUM(C136:C140) -> 0.7981592949
A143: TRÁMITE: | B143: Solicitud de pasa saldo de Servicio Móvil Avanzado (SMA) Masivo Persona Natural
A144: NO. | B144: ACTIVIDAD | C144: COSTO
A145: 1 | C145: 0
B146: SUMATORIA ACTIVIDADES | C146: =SUM(C145:C145) -> 0
A148: TRÁMITE: | B148: Solicitud de Recargas con cargo a factura o débito bancario de Servicio Móvil Avanzado (SMA) Masivo Persona Natural
A149: NO. | B149: ACTIVIDAD | C149: COSTO
A150: 1 | C150: =D150/60 -> 0
B151: SUMATORIA ACTIVIDADES | C151: =SUM(C150:C150) -> 0
A153: TRÁMITE: | B153: Solicitud de Reclamo de Facturación de Servicio Móvil Avanzado (SMA) Masivo Persona Natural
A154: NO. | B154: ACTIVIDAD | C154: COSTO
A155: 1 | B155: Sistema Transaccional | C155: =E2 -> 0.5281592949
A156: 2
A157: 3
A158: 4
A159: 5
B160: SUMATORIA ACTIVIDADES | C160: =SUM(C155:C159) -> 0.5281592949
A162: TRÁMITE: | B162: Solicitud de Cambio de Entidad Financiera para el Pago de Servicio Móvil Avanzado (SMA) Masivo Persona Natural
A163: NO. | B163: ACTIVIDAD | C163: COSTO
A164: 1 | B164: Sistema Transaccional | C164: =E2 -> 0.5281592949
A165: 2 | B165: Impresora | C165: 0
A166: 3 | B166: Impresión Solicitud de Cambio de Entidad Financiera (1 hoja) | C166: ='[2]AUXILIAR COSTO IMPRESIONES'!B3 -> 0.054
A167: 4 | B167: Copia cédula (1 hoja) | C167: ='[2]AUXILIAR COSTO IMPRESIONES'!B3*2 -> 0.108
A168: 5
B169: SUMATORIA ACTIVIDADES | C169: =SUM(C164:C168) -> 0.6901592949
A171: TRÁMITE: | B171: Solicitud de Cesión de Derechos de Servicio Móvil Avanzado (SMA) Masivo Persona Natural
A172: NO. | B172: ACTIVIDAD | C172: COSTO
A173: 1 | B173: Sistema Transaccional | C173: =E2 -> 0.5281592949
A174: 2 | B174: Impresora | C174: 0
A175: 3 | B175: Impresión Solicitud Cesión de Derechos (1 hoja) | C175: ='[2]AUXILIAR COSTO IMPRESIONES'!B3 -> 0.054
A176: 4 | B176: Copia cédula Cesionario (1 hoja) | C176: ='[2]AUXILIAR COSTO IMPRESIONES'!B3*2 -> 0.108
A177: 5 | B177: Copia cédula Cedente (1 hoja) | C177: ='[2]AUXILIAR COSTO IMPRESIONES'!B3*2 -> 0.108
B178: SUMATORIA ACTIVIDADES | C178: =SUM(C173:C177) -> 0.7981592949
A180: TRÁMITE: | B180: Consulta de valores a pagar o estado de pago por valores pendientes de Servicio Móvil Avanzado (SMA) Persona Natural (en los Centros de atención).
A181: NO. | B181: ACTIVIDAD | C181: COSTO
A182: 1 | C182: =D182/60 -> 0
B183: SUMATORIA ACTIVIDADES | C183: =SUM(C182:C182) -> 0
A185: TRÁMITE: | B185: Solicitud de Queja Técnica de Servicio Móvil Avanzado (SMA) Masivo Persona Natural
A186: NO. | B186: ACTIVIDAD | C186: COSTO
A187: 1 | B187: Sistema Transaccional CNT | C187: =E2 -> 0.5281592949
A188: 2 | B188: Sistema Transaccional TELAND | C188: =E2 -> 0.5281592949
A189: 3 | B189: Imprenta | C189: 0
A190: 4 | B190: Impresión Acta de Entrega de Recepción (2 hojas) | C190: ='[2]AUXILIAR COSTO IMPRESIONES'!B3*2 -> 0.108
A191: 5 | B191: Copia cédula (1 hoja) | C191: ='[2]AUXILIAR COSTO IMPRESIONES'!B3*2 -> 0.108
A192: 6 | B192: Emisión de factura (1 hoja) | C192: ='[2]AUXILIAR COSTO IMPRESIONES'!B3 -> 0.054
A193: 7
B195: SUMATORIA ACTIVIDADES | C195: =SUM(C187:C193) -> 1.32631859
A197: INTERNET FIJO
A199: TRÁMITE: | B199: Solicitud de Plan Hogar de Servicio de Internet Fijo Masivo Persona Natural
A200: NO. | B200: ACTIVIDAD | C200: COSTO
A201: 1 | B201: Sistema Transaccional | C201: =E2 -> 0.5281592949
A202: 2 | B202: Impresora | C202: 0
A203: 3 | B203: Impresión contrato y/o Solicitud ( 6 hojas) | C203: ='[2]AUXILIAR COSTO IMPRESIONES'!B3*6 -> 0.324
A204: 4 | B204: Copia cédula (1 hoja) | C204: ='[2]AUXILIAR COSTO IMPRESIONES'!B3*2 -> 0.108
A205: 5 | B205: Copia DINARDAP (1 hoja) | C205: ='[2]AUXILIAR COSTO IMPRESIONES'!B3 -> 0.054
A206: 6 | B206: Buró de crédito (1 hoja) | C206: ='[2]AUXILIAR COSTO IMPRESIONES'!B3 -> 0.054
B207: Instalación de equipos-Área técnica:
A208: 8 | B208: Módem | C208: 0 | D208: Calculado en la tarifa del servicio
A209: 9 | B209: Cables | C209: 0 | D209: Calculado en la tarifa del servicio
B215: SUMATORIA ACTIVIDADES | C215: =SUM(C201:C214) -> 1.068159295
A217: TRÁMITE: | B217: Solicitud de Cambio de Plan - Velocidad de Servicio de Internet Fijo Masivo Persona Natural
A218: NO. | B218: ACTIVIDAD | C218: COSTO
A219: 1 | B219: Sistema Transaccional | C219: =E2 -> 0.5281592949
A220: 2 | B220: Impresora | C220: 0
A221: 3 | B221: Impresión Solicitud (2 hojas) | C221: ='[2]AUXILIAR COSTO IMPRESIONES'!B3*2 -> 0.108
A222: 4 | B222: Copia cédula (1 hoja) | C222: ='[2]AUXILIAR COSTO IMPRESIONES'!B3*2 -> 0.108
A223: 5 | B223: Buró de crédito (1 hoja)- cuando aplique | C223: ='[2]AUXILIAR COSTO IMPRESIONES'!B3 -> 0.054
B224: SUMATORIA ACTIVIDADES | C224: =SUM(C219:C223) -> 0.7981592949
A226: TRÁMITE: | B226: Solicitud de Creación de cuentas adicionales de Correo de Servicio de Internet Fijo Masivo Persona Natural
A227: NO. | B227: ACTIVIDAD | C227: COSTO
A228: 1 | B228: Sistema Transaccional | C228: =E2 -> 0.5281592949
A229: 2 | B229: Impresora | C229: 0
A230: 3 | B230: Impresión Solicitud (2 hojas) | C230: ='[2]AUXILIAR COSTO IMPRESIONES'!B3*2 -> 0.108
A231: 4 | B231: Copia cédula (1 hoja) | C231: ='[2]AUXILIAR COSTO IMPRESIONES'!B3*2 -> 0.108
A232: 5
B233: SUMATORIA ACTIVIDADES | C233: =SUM(C228:C232) -> 0.7441592949
A235: TRÁMITE: | B235: Solicitud de Suspensión temporal de Servicio de Internet Fijo Masivo Persona Natural
A236: NO. | B236: ACTIVIDAD | C236: COSTO
A237: 1 | B237: Sistema Transaccional | C237: =E2 -> 0.5281592949
... 113 more rows

Sheet AUXILIAR COSTO ADMINISTRACIÓN (hidden)
A2: TRÁMITE:
A3: NO. | B3: ACTIVIDAD | C3: TIEMPO (HORAS)
A4: 1
A5: 2
A6: 3
A7: 4
A8: 5
A9: 6
A10: 7
A11: 8
A12: 9
A13: 10
A14: 11
A15: 12
A16: 13
A17: 14
A18: 15
B20: SUMATORIA ACTIVIDADES | C20: =SUM(C4:C19) -> 0

Sheet AUXILIAR COSTO ADMINISTRACI (hidden)
A1: SMA
A2: TRÁMITE: | B2: Solicitud de Servicio Móvil Avanzado (SMA) Prepago Masivo Persona Natural
A3: NO. | B3: ACTIVIDAD | C3: TIEMPO (HORAS)
A4: 1 | B4: Saludo de bienvenida | C4: =D4/60 -> 0.03333333333 | D4: 2
A5: 2 | B5: Despejar dudas sobre el producto o servicio | C5: 0.08333333333 | D5: 5
A6: 3 | B6: Emisión de factura para pago | C6: 0.03333333333 | D6: 2
A7: 4 | B7: Realizar el pago de la Simcard (chip) | C7: 0.1166666667 | D7: 7
A8: 5 | B8: Entrega de producto y/o servicio | C8: 0.08333333333 | D8: 5
A9: 6 | B9: Cierre | C9: 0.05 | D9: 3
B10: SUMATORIA ACTIVIDADES | C10: =SUM(C4:C9) -> 0.4
A12: TRÁMITE: | B12: Solicitud de Servicio Móvil Avanzado (SMA) Postpago Masivo Persona Natural
A13: NO. | B13: ACTIVIDAD | C13: TIEMPO (HORAS)
A14: 1 | B14: Saludo de bienvenida | C14: =D14/60 -> 0.03333333333 | D14: 2
A15: 2 | B15: Despejar dudas sobre el producto o servicio | C15: =D15/60 -> 0.1666666667 | D15: 10
A16: 3 | B16: Firma de contrato y/o Solicitud | C16: =D16/60 -> 0.1666666667 | D16: 10
A17: 4 | B17: Entrega de producto y/o servicio | C17: =D17/60 -> 0.08333333333 | D17: 5
A18: 5 | B18: Cierre | C18: =D18/60 -> 0.05 | D18: 3
B19: SUMATORIA ACTIVIDADES | C19: =SUM(C14:C18) -> 0.5
A21: TRÁMITE: | B21: Solicitud de Servicio Móvil Avanzado (SMA) Portabilidad Prepago Masivo Persona Natural
A22: NO. | B22: ACTIVIDAD | C22: TIEMPO (HORAS)
A23: 1 | B23: Saludo de bienvenida | C23: =D23/60 -> 0.03333333333 | D23: 2
A24: 2 | B24: Despejar dudas sobre el producto o servicio | C24: =D24/60 -> 0.08333333333 | D24: 5
A25: 3 | B25: Firma de contrato y/o Solicitud | C25: =D25/60 -> 0.08333333333 | D25: 5
A26: 4 | B26: Entrega de producto y/o servicio | C26: =D26/60 -> 0.08333333333 | D26: 5
A27: 5 | B27: Cierre | C27: =D27/60 -> 0.05 | D27: 3
B28: SUMATORIA ACTIVIDADES | C28: =SUM(C23:C27) -> 0.3333333333
A30: TRÁMITE: | B30: Solicitud de Servicio Móvil Avanzado (SMA) Portabilidad Postpago Masivo Persona Natural
A31: NO. | B31: ACTIVIDAD | C31: TIEMPO (HORAS)
A32: 1 | B32: Saludo de bienvenida | C32: =D32/60 -> 0.03333333333 | D32: 2
A33: 2 | B33: Despejar dudas sobre el producto o servicio | C33: =D33/60 -> 0.1666666667 | D33: 10
A34: 3 | B34: Firma de contrato y/o Solicitud | C34: =D34/60 -> 0.3333333333 | D34: 20
A35: 4 | B35: Entrega de producto y/o servicio | C35: =D35/60 -> 0.08333333333 | D35: 5
A36: 5 | B36: Cierre | C36: =D36/60 -> 0.05 | D36: 3
B37: SUMATORIA ACTIVIDADES | C37: =SUM(C32:C36) -> 0.6666666667
A39: TRÁMITE: | B39: Solicitud de Activación de Paquetes de voz de Servicio Móvil Avanzado (SMA) Masivo Persona Natural
A40: NO. | B40: ACTIVIDAD | C40: TIEMPO (HORAS)
A41: 1 | B41: Saludo de bienvenida | C41: =D41/60 -> 0.03333333333 | D41: 2
A42: 2 | B42: Despejar dudas sobre el producto o servicio | C42: =D42/60 -> 0.1333333333 | D42: 8
A43: 3 | B43: Firma de contrato y/o Solicitud | C43: =D43/60 -> 0.08333333333 | D43: 5
A44: 4 | B44: Entrega de producto y/o servicio | C44: =D44/60 -> 0.08333333333 | D44: 5
A45: 5 | B45: Cierre | C45: =D45/60 -> 0.05 | D45: 3
B46: SUMATORIA ACTIVIDADES | C46: =SUM(C41:C45) -> 0.3833333333
A48: TRÁMITE: | B48: Solicitud de Cambio de Número de Servicio Móvil Avanzado (SMA) Masivo Persona Natural
A49: NO. | B49: ACTIVIDAD | C49: TIEMPO (HORAS)
A50: 1 | B50: Saludo de bienvenida | C50: =D50/60 -> 0.03333333333 | D50: 2
A51: 2 | B51: Despejar dudas sobre el producto o servicio | C51: =D51/60 -> 0.08333333333 | D51: 5
A52: 3 | B52: Firma de contrato y/o Solicitud | C52: =D52/60 -> 0.08333333333 | D52: 5
A53: 4 | B53: Entrega de producto y/o servicio | C53: =D53/60 -> 0.1166666667 | D53: 7
A54: 5 | B54: Cierre | C54: =D54/60 -> 0.05 | D54: 3
B55: SUMATORIA ACTIVIDADES | C55: =SUM(C50:C54) -> 0.3666666667
A57: TRÁMITE: | B57: Solicitud de Cambio de Plan de Servicio Móvil Avanzado (SMA) Masivo Persona Natural
A58: NO. | B58: ACTIVIDAD | C58: TIEMPO (HORAS)
A59: 1 | B59: Saludo de bienvenida | C59: =D59/60 -> 0.03333333333 | D59: 2
A60: 2 | B60: Despejar dudas sobre el producto o servicio | C60: =D60/60 -> 0.1666666667 | D60: 10
A61: 3 | B61: Firma de contrato y/o Solicitud | C61: =D61/60 -> 0.08333333333 | D61: 5
A62: 4 | B62: Entrega de producto y/o servicio | C62: =D62/60 -> 0.08333333333 | D62: 5
A63: 5 | B63: Cierre | C63: =D63/60 -> 0.05 | D63: 3
B64: SUMATORIA ACTIVIDADES | C64: =SUM(C59:C63) -> 0.4166666667
A66: TRÁMITE: | B66: Solicitud de Reposición de Simcard (Robo-Pérdida-Daño) de Servicio Móvil Avanzado (SMA) Masivo Persona Natural
A67: NO. | B67: ACTIVIDAD | C67: TIEMPO (HORAS)
A68: 1 | B68: Saludo de bienvenida | C68: =D68/60 -> 0.03333333333 | D68: 2
A69: 2 | B69: Despejar dudas sobre el producto o servicio | C69: 0.08333333333 | D69: 5
A70: 3 | B70: Emisión de factura para pago | C70: 0.03333333333 | D70: 2
A71: 4 | B71: Realizar el pago de la Simcard (chip) | C71: 0.1166666667 | D71: 7
A72: 5 | B72: Entrega de producto y/o servicio | C72: 0.08333333333 | D72: 5
A73: 6 | B73: Cierre | C73: 0.05 | D73: 3
B74: SUMATORIA ACTIVIDADES | C74: =SUM(C68:C73) -> 0.4
A76: TRÁMITE: | B76: Solicitud de Suspensión por Robo o Pérdida de Equipo de Servicio Móvil Avanzado (SMA) Masivo Persona Natural
A77: NO. | B77: ACTIVIDAD | C77: TIEMPO (HORAS)
A78: 1 | B78: Saludo de bienvenida | C78: =D78/60 -> 0.03333333333 | D78: 2
A79: 2 | B79: Despejar dudas sobre el producto o servicio | C79: =D79/60 -> 0.08333333333 | D79: 5
A80: 3 | B80: Entrega de producto y/o servicio | C80: =D80/60 -> 0.08333333333 | D80: 5
A81: 4 | B81: Cierre | C81: =D81/60 -> 0.05 | D81: 3
B82: SUMATORIA ACTIVIDADES | C82: =SUM(C78:C81) -> 0.25
A84: TRÁMITE: | B84: Solicitud de Cambio de Equipo Móvil (Robo-Pérdida-Daño) de Servicio Móvil Avanzado (SMA) Masivo Persona Natural
A85: NO. | B85: ACTIVIDAD | C85: TIEMPO (HORAS)
A86: 1 | B86: Saludo de bienvenida | C86: =D86/60 -> 0.03333333333 | D86: 2
A87: 2 | B87: Despejar dudas sobre el producto o servicio | C87: 0.1666666667 | D87: 10
A88: 3 | B88: Firmar solicitud | C88: 0.08333333333 | D88: 5
A89: 4 | B89: Pagar equipo (cuando aplique) | C89: 0.1166666667 | D89: 7
A90: 5 | B90: Entrega de producto y/o servicio | C90: 0.75 | D90: 45
A91: 6 | B91: Cierre | C91: 0.05 | D91: 3
B92: SUMATORIA ACTIVIDADES | C92: =SUM(C86:C91) -> 1.2
A94: TRÁMITE: | B94: Solicitud de Roaming de Servicio de Servicio Móvil Avanzado (SMA) Masivo Persona Natural
A95: NO. | B95: ACTIVIDAD | C95: TIEMPO (HORAS)
A96: 1 | B96: Saludo de bienvenida | C96: =D96/60 -> 0.03333333333 | D96: 2
A97: 2 | B97: Despejar dudas sobre el producto o servicio | C97: =D97/60 -> 0.1666666667 | D97: 10
A98: 3 | B98: Firmar solicitud | C98: =D98/60 -> 0.08333333333 | D98: 5
A99: 4 | B99: Entrega de producto y/o servicio | C99: =D99/60 -> 0.08333333333 | D99: 5
A100: 5 | B100: Cierre | C100: =D100/60 -> 0.05 | D100: 3
B101: SUMATORIA ACTIVIDADES | C101: =SUM(C96:C100) -> 0.4166666667
A103: TRÁMITE: | B103: Solicitud para Número Reservado de Servicio Móvil Avanzado (SMA) Masivo Persona Natural
A104: NO. | B104: ACTIVIDAD | C104: TIEMPO (HORAS)
A105: 1 | B105: Saludo de bienvenida | C105: =D105/60 -> 0.03333333333 | D105: 2
A106: 2 | B106: Despejar dudas sobre el producto o servicio | C106: =D106/60 -> 0.1666666667 | D106: 10
A107: 3 | B107: Firmar solicitud | C107: =D107/60 -> 0.08333333333 | D107: 5
A108: 4 | B108: Entrega de producto y/o servicio | C108: =D108/60 -> 0.08333333333 | D108: 5
A109: 5 | B109: Cierre | C109: =D109/60 -> 0.05 | D109: 3
B110: SUMATORIA ACTIVIDADES | C110: =SUM(C105:C109) -> 0.4166666667
A112: TRÁMITE: | B112: Solicitud de detalle de llamadas de Servicio Móvil Avanzado (SMA) Masivo Persona Natural
A113: NO. | B113: ACTIVIDAD | C113: TIEMPO (HORAS)
A114: 1 | B114: Saludo de bienvenida | C114: =D114/60 -> 0.03333333333 | D114: 2
A115: 2 | B115: Despejar dudas sobre el producto o servicio | C115: =D115/60 -> 0.08333333333 | D115: 5
A116: 3 | B116: Firmar solicitud | C116: =D116/60 -> 0.08333333333 | D116: 5
A117: 4 | B117: Entrega de producto y/o servicio | C117: =D117/60 -> 0.08333333333 | D117: 5
A118: 5 | B118: Cierre | C118: =D118/60 -> 0.05 | D118: 3
B119: SUMATORIA ACTIVIDADES | C119: =SUM(C114:C118) -> 0.3333333333
A121: TRÁMITE: | B121: Solicitud de pasa saldo de Servicio Móvil Avanzado (SMA) Masivo Persona Natural
A122: NO. | B122: ACTIVIDAD | C122: TIEMPO (HORAS)
A123: 1 | B123: Trámite automático a través de APP CNT Móvil | C123: 0 | D123: 0
B124: SUMATORIA ACTIVIDADES | C124: =SUM(C123:C123) -> 0
A126: TRÁMITE: | B126: Solicitud de Recargas con cargo a factura o débito bancario de Servicio Móvil Avanzado (SMA) Masivo Persona Natural
A127: NO. | B127: ACTIVIDAD | C127: TIEMPO (HORAS)
A128: 1 | B128: Trámite automático a través de APP CNT Móvil | C128: =D128/60 -> 0 | D128: 0
B129: SUMATORIA ACTIVIDADES | C129: =SUM(C128:C128) -> 0
A131: TRÁMITE: | B131: Solicitud de Reclamo de Facturación de Servicio Móvil Avanzado (SMA) Masivo Persona Natural
A132: NO. | B132: ACTIVIDAD | C132: TIEMPO (HORAS)
A133: 1 | B133: Saludo de bienvenida | C133: =D133/60 -> 0.03333333333 | D133: 2
A134: 2 | B134: Despejar dudas sobre el producto o servicio | C134: =D134/60 -> 0.25 | D134: 15
A135: 3 | B135: Entrega de producto y/o servicio | C135: =D135/60 -> 0.1333333333 | D135: 8
A136: 4 | B136: Validación de reclamo-Área postventa | C136: 1
A137: 5 | B137: Cierre | C137: =D137/60 -> 0.05 | D137: 3
B138: SUMATORIA ACTIVIDADES | C138: =SUM(C133:C137) -> 1.466666667
A140: TRÁMITE: | B140: Solicitud de Cambio de Entidad Financiera para el Pago de Servicio Móvil Avanzado (SMA) Masivo Persona Natural
A141: NO. | B141: ACTIVIDAD | C141: TIEMPO (HORAS)
A142: 1 | B142: Saludo de bienvenida | C142: =D142/60 -> 0.03333333333 | D142: 2
A143: 2 | B143: Despejar dudas sobre el producto o servicio | C143: =D143/60 -> 0.08333333333 | D143: 5
A144: 3 | B144: Firmar solicitud | C144: =D144/60 -> 0.08333333333 | D144: 5
A145: 4 | B145: Entrega de producto y/o servicio | C145: =D145/60 -> 0.1333333333 | D145: 8
A146: 5 | B146: Cierre | C146: =D146/60 -> 0.05 | D146: 3
B147: SUMATORIA ACTIVIDADES | C147: =SUM(C142:C146) -> 0.3833333333
A149: TRÁMITE: | B149: Solicitud de Cesión de Derechos de Servicio Móvil Avanzado (SMA) Masivo Persona Natural
A150: NO. | B150: ACTIVIDAD | C150: TIEMPO (HORAS)
A151: 1 | B151: Saludo de bienvenida | C151: =D151/60 -> 0.03333333333 | D151: 2
A152: 2 | B152: Despejar dudas sobre el producto o servicio | C152: =D152/60 -> 0.08333333333 | D152: 5
A153: 3 | B153: Firmar solicitud | C153: =D153/60 -> 0.08333333333 | D153: 5
A154: 4 | B154: Entrega de producto y/o servicio | C154: =D154/60 -> 0.1166666667 | D154: 7
A155: 5 | B155: Cierre | C155: =D155/60 -> 0.05 | D155: 3
B156: SUMATORIA ACTIVIDADES | C156: =SUM(C151:C155) -> 0.3666666667
A158: TRÁMITE: | B158: Consulta de valores a pagar o estado de pago por valores pendientes de Servicio Móvil Avanzado (SMA) Persona Natural (en los Centros de atención).
A159: NO. | B159: ACTIVIDAD | C159: TIEMPO (HORAS)
A160: 1 | B160: Trámite automático a través de kiosko virtual de CNT EP. | C160: =D160/60 -> 0 | D160: 0
B161: SUMATORIA ACTIVIDADES | C161: =SUM(C160:C160) -> 0
A163: TRÁMITE: | B163: Solicitud de Queja Técnica de Servicio Móvil Avanzado (SMA) Masivo Persona Natural
A164: NO. | B164: ACTIVIDAD | C164: TIEMPO (HORAS)
A165: 1 | B165: Saludo de bienvenida | C165: =D165/60 -> 0.03333333333 | D165: 2
A166: 2 | B166: Despejar dudas sobre el producto o servicio | C166: =D166/60 -> 0.25 | D166: 15
A167: 3 | B167: Entrega de equipo a bodega | C167: =D167/60 -> 0.1666666667 | D167: 10
A168: 4 | B168: Cierre | C168: =D168/60 -> 0.05 | D168: 3
A169: 5 | B169: Revisión equipo por área técnica | C169: 5
A170: 6 | B170: Validación y entrega de equipo con el cliente | C170: =D170/60 -> 0.3333333333 | D170: 20
B171: SUMATORIA ACTIVIDADES | C171: =SUM(C165:C170) -> 5.833333333
A173: INTERNET FIJO
A175: TRÁMITE: | B175: Solicitud de Plan Hogar de Servicio de Internet Fijo Masivo Persona Natural
A176: NO. | B176: ACTIVIDAD | C176: TIEMPO (HORAS)
A177: 1 | B177: Saludo de bienvenida | C177: =D177/60 -> 0.03333333333 | D177: 2
A178: 2 | B178: Despejar dudas sobre el producto o servicio | C178: =D178/60 -> 0.1666666667 | D178: 10
A179: 3 | B179: Firma de solicitud | C179: =D179/60 -> 0.1666666667 | D179: 10
A180: 4 | B180: Entrega de producto y/o servicio | C180: =D180/60 -> 0.1333333333 | D180: 8
A181: 5 | B181: Cierre | C181: =D181/60 -> 0.05 | D181: 3
A182: 6 | B182: Instalación de equipos-Área técnica | C182: 4
B183: SUMATORIA ACTIVIDADES | C183: =SUM(C177:C182) -> 4.55
A185: TRÁMITE: | B185: Solicitud de Cambio de Plan - Velocidad de Servicio de Internet Fijo Masivo Persona Natural
A186: NO. | B186: ACTIVIDAD | C186: TIEMPO (HORAS)
A187: 1 | B187: Saludo de bienvenida | C187: =D187/60 -> 0.03333333333 | D187: 2
A188: 2 | B188: Despejar dudas sobre el producto o servicio | C188: =D188/60 -> 0.1166666667 | D188: 7
A189: 3 | B189: Firma de solicitud | C189: =D189/60 -> 0.08333333333 | D189: 5
A190: 4 | B190: Entrega de producto y/o servicio | C190: =D190/60 -> 0.1333333333 | D190: 8
A191: 5 | B191: Cierre | C191: =D191/60 -> 0.05 | D191: 3
B192: SUMATORIA ACTIVIDADES | C192: =SUM(C187:C191) -> 0.4166666667
A194: TRÁMITE: | B194: Solicitud de Creación de cuentas adicionales de Correo de Servicio de Internet Fijo Masivo Persona Natural
A195: NO. | B195: ACTIVIDAD | C195: TIEMPO (HORAS)
A196: 1 | B196: Saludo de bienvenida | C196: =D196/60 -> 0.03333333333 | D196: 2
A197: 2 | B197: Despejar dudas sobre el producto o servicio | C197: =D197/60 -> 0.08333333333 | D197: 5
A198: 3 | B198: Firma de solicitud | C198: =D198/60 -> 0.08333333333 | D198: 5
A199: 4 | B199: Entrega de producto y/o servicio | C199: =D199/60 -> 0.1333333333 | D199: 8
A200: 5 | B200: Cierre | C200: =D200/60 -> 0.05 | D200: 3
B201: SUMATORIA ACTIVIDADES | C201: =SUM(C196:C200) -> 0.3833333333
A203: TRÁMITE: | B203: Solicitud de Suspensión temporal de Servicio de Internet Fijo Masivo Persona Natural
A204: NO. | B204: ACTIVIDAD | C204: TIEMPO (HORAS)
A205: 1 | B205: Saludo de bienvenida | C205: =D205/60 -> 0.03333333333 | D205: 2
A206: 2 | B206: Despejar dudas sobre el producto o servicio | C206: =D206/60 -> 0.08333333333 | D206: 5
A207: 3 | B207: Firma de contrato y/o Solicitud | C207: =D207/60 -> 0.08333333333 | D207: 5
A208: 4 | B208: Entrega de producto y/o servicio | C208: =D208/60 -> 0.1666666667 | D208: 10
A209: 5 | B209: Cierre | C209: =D209/60 -> 0.05 | D209: 3
B210: SUMATORIA ACTIVIDADES | C210: =SUM(C205:C209) -> 0.4166666667
A212: TRÁMITE: | B212: Solicitud de Detalle de Navegación de Servicio de Internet Fijo Masivo Persona Natural
A213: NO. | B213: ACTIVIDAD | C213: TIEMPO (HORAS)
A214: 1 | B214: Saludo de bienvenida | C214: =D214/60 -> 0.03333333333 | D214: 2
A215: 2 | B215: Despejar dudas sobre el producto o servicio | C215: 0.1666666667 | D215: 10
A216: 3 | B216: Firma de contrato y/o Solicitud | C216: 0.08333333333 | D216: 5
A217: 4 | B217: Entrega de producto y/o servicio | C217: 0.1166666667 | D217: 7
A218: 5 | B218: Cierre | C218: 0.05 | D218: 3
A219: 6 | B219: Descarga de detalle de navegación | C219: 0.25 | D219: 15
A220: 7 | B220: Entrega de información al cliente | C220: 0.1666666667 | D220: 10
B221: SUMATORIA ACTIVIDADES | C221: =SUM(C214:C220) -> 0.8666666667
A223: TRÁMITE: | B223: Solicitud de Convenio de Pago de Servicio de Internet Fijo Masivo Persona Natural
A224: NO. | B224: ACTIVIDAD | C224: TIEMPO (HORAS)
A225: 1 | B225: Saludo de bienvenida | C225: =D225/60 -> 0.03333333333 | D225: 2
A226: 2 | B226: Despejar dudas sobre el producto o servicio | C226: =D226/60 -> 0.1666666667 | D226: 10
... 92 more rows

Sheet RESUMEN DE COSTOS AP
A1: PRIORIZACIÓN DE TRÁMITES ADMINISTRATIVOS
A2: COSTOS PARA LA ADMINISTRACIÓN PÚBLICA
A4: IDENTIFICADOR | B4: TRÁMITE | C4: COSTO PARA LA ADM. PÚBLICA | D4: PUNTUACIÓN
A5: CNT-002-01-16 | B5: Consulta de valores a pagar o estado de pago por valores pendientes de Servicio Internet Fijo Masivo Persona Natural (en los Centros de atención). | C5: 0 | D5: 20
A6: CNT-001-01-19 | B6: Consulta de valores a pagar o estado de pago por valores pendientes de Servicio Móvil Avanzado (SMA) Persona Natural (en los Centros de atención). | C6: 0 | D6: 10
A7: CNT-001-01-14 | B7: Solicitud de pasa saldo de Servicio Móvil Avanzado (SMA) Masivo Persona Natural | C7: 0 | D7: 5
A8: CNT-001-01-15 | B8: Solicitud de Recargas con cargo a factura o débito bancario de Servicio Móvil Avanzado (SMA) Masivo Persona Natural | C8: 0 | D8: 5
A9: CNT-001-01-09 | B9: Solicitud de Suspensión por Robo o Pérdida de Equipo de Servicio Móvil Avanzado (SMA) Masivo Persona Natural | C9: 1.153159295 | D9: 5
A10: CNT-002-01-07 | B10: Solicitud de Actualización de Datos de Servicio de Internet Fijo Masivo Persona Natural | C10: 1.569825962 | D10: 5
A11: CNT-001-01-13 | B11: Solicitud de detalle de llamadas de Servicio Móvil Avanzado (SMA) Masivo Persona Natural | C11: 1.631492628 | D11: 5
A12: CNT-001-01-05 | B12: Solicitud de Activación de Paquetes de voz de Servicio Móvil Avanzado (SMA) Masivo Persona Natural | C12: 1.648492628 | D12: 5
A13: CNT-001-01-17 | B13: Solicitud de Cambio de Entidad Financiera para el Pago de Servicio Móvil Avanzado (SMA) Masivo Persona Natural | C13: 1.648492628 | D13: 5
A14: CNT-002-01-12 | B14: Solicitud de Cambio de Forma de Pago de Servicio de Internet Fijo Masivo Persona Natural | C14: 1.648492628 | D14: 5
A15: CNT-001-01-06 | B15: Solicitud de Cambio de Número de Servicio Móvil Avanzado (SMA) Masivo Persona Natural | C15: 1.660825962 | D15: 5
A16: CNT-002-01-03 | B16: Solicitud de Creación de cuentas adicionales de Correo de Servicio de Internet Fijo Masivo Persona Natural | C16: 1.702492628 | D16: 5
A17: CNT-001-01-18 | B17: Solicitud de Cesión de Derechos de Servicio Móvil Avanzado (SMA) Masivo Persona Natural | C17: 1.714825962 | D17: 5
A18: CNT-002-01-04 | B18: Solicitud de Suspensión temporal de Servicio de Internet Fijo Masivo Persona Natural | C18: 1.731825962 | D18: 5
A19: CNT-001-01-12 | B19: Solicitud para Número Reservado de Servicio Móvil Avanzado (SMA) Masivo Persona Natural | C19: 1.731825962 | D19: 5
A20: CNT-001-01-03 | B20: Solicitud de Servicio Móvil Avanzado (SMA) Portabilidad Prepago Masivo Persona Natural | C20: 1.739492628 | D20: 10
A21: CNT-001-01-08 | B21: Solicitud de Reposición de Simcard (Robo-Pérdida-Daño) de Servicio Móvil Avanzado (SMA) Masivo Persona Natural | C21: 1.798159295 | D21: 10
A22: CNT-002-01-02 | B22: Solicitud de Cambio de Plan - Velocidad de Servicio de Internet Fijo Masivo Persona Natural | C22: 1.839825962 | D22: 10
A23: CNT-002-01-06 | B23: Solicitud de Convenio de Pago de Servicio de Internet Fijo Masivo Persona Natural | C23: 1.856825962 | D23: 10
A24: CNT-001-01-01 | B24: Solicitud de Servicio Móvil Avanzado (SMA) Prepago Masivo Persona Natural | C24: 1.906159295 | D24: 10
A25: CNT-001-01-11 | B25: Solicitud de Roaming de Servicio de Servicio Móvil Avanzado (SMA) Masivo Persona Natural | C25: 1.947825962 | D25: 10
A26: CNT-002-01-17 | B26: Solicitud de Cesión de Derechos de Servicio de Internet Fijo Masivo Persona Natural | C26: 1.964825962 | D26: 10
A27: CNT-002-01-10 | B27: Solicitud de Descuento por discapacidad de Servicio de Internet Fijo Masivo Persona Natural | C27: 1.964825962 | D27: 10
A28: CNT-001-01-07 | B28: Solicitud de Cambio de Plan de Servicio Móvil Avanzado (SMA) Masivo Persona Natural | C28: 2.163825962 | D28: 10
A29: CNT-001-01-02 | B29: Solicitud de Servicio Móvil Avanzado (SMA) Postpago Masivo Persona Natural | C29: 2.534159295 | D29: 10
A30: CNT-002-01-14 | B30: Solicitud de Reclamo de Facturación de Servicio de Internet Fijo Masivo Persona Natural | C30: 2.582159295 | D30: 10
A31: CNT-002-01-05 | B31: Solicitud de Detalle de Navegación de Servicio de Internet Fijo Masivo Persona Natural | C31: 2.694825962 | D31: 20
A32: CNT-001-01-04 | B32: Solicitud de Servicio Móvil Avanzado (SMA) Portabilidad Postpago Masivo Persona Natural | C32: 2.950825962 | D32: 20
A33: CNT-001-01-10 | B33: Solicitud de Cambio de Equipo Móvil (Robo-Pérdida-Daño) de Servicio Móvil Avanzado (SMA) Masivo Persona Natural | C33: 4.014159295 | D33: 20
A34: CNT-001-01-16 | B34: Solicitud de Reclamo de Facturación de Servicio Móvil Avanzado (SMA) Masivo Persona Natural | C34: 4.194825962 | D34: 20
A35: CNT-002-01-13 | B35: Solicitud de Cancelación de Servicios del Servicio de Internet Fijo Masivo Persona Natural | C35: 4.356825962 | D35: 20
A36: CNT-002-01-09 | B36: Solicitud de Cambio de Módem de Servicio de Internet Fijo Masivo Persona Natural | C36: 11.27815929 | D36: 20
A37: CNT-002-01-15 | B37: Solicitud de Queja Técnica de Servicio de Internet Fijo Masivo Persona Jurídica | C37: 11.54049263 | D37: 20
A38: CNT-002-01-11 | B38: Solicitud de Traslado de Servicio de Internet Fijo Masivo Persona Natural | C38: 11.73182596 | D38: 20
A39: CNT-002-01-08 | B39: Solicitud de Plan Estudiantil de Servicio de Internet Fijo Masivo Persona Natural | C39: 12.44315929 | D39: 20
A40: CNT-002-01-01 | B40: Solicitud de Plan Hogar de Servicio de Internet Fijo Masivo Persona Natural | C40: 12.44315929 | D40: 20
A41: CNT-001-01-20 | B41: Solicitud de Queja Técnica de Servicio Móvil Avanzado (SMA) Masivo Persona Natural | C41: 15.90965192 | D41: 20

Sheet CANAL ATENCIÓN
A1: PRIORIZACIÓN DE TRÁMITES ADMINISTRATIVOS
A2: CANAL DE ATENCIÓN
I3: Totalmente en Línea | L3: 0
A4: IDENTIFICADOR | B4: TRÁMITE | C4: CANAL ATENCIÓN | D4: PUNTUACIÓN | I4: No se completa totalmente en línea. | L4: 10
A5: CNT-002-01-07 | B5: Solicitud de Actualización de Datos de Servicio de Internet Fijo Masivo Persona Natural | C5: Totalmente en Línea | D5: =IF(ISBLANK(C5),"",IF(C5="Totalmente en línea",0,IF(C5="Inicia en línea",6,10))) -> 0
A6: CNT-001-01-17 | B6: Solicitud de Cambio de Entidad Financiera para el Pago de Servicio Móvil Avanzado (SMA) Masivo Persona Natural | C6: No se completa totalmente en línea. | D6: =IF(ISBLANK(C6),"",IF(C6="Totalmente en línea",0,IF(C6="Inicia en línea",6,10))) -> 10
A7: CNT-002-01-12 | B7: Solicitud de Cambio de Forma de Pago de Servicio de Internet Fijo Masivo Persona Natural | C7: No se completa totalmente en línea. | D7: 10
A8: CNT-001-01-06 | B8: Solicitud de Cambio de Número de Servicio Móvil Avanzado (SMA) Masivo Persona Natural | C8: No se completa totalmente en línea. | D8: 10
A9: CNT-002-01-17 | B9: Solicitud de Cesión de Derechos de Servicio de Internet Fijo Masivo Persona Natural | C9: No se completa totalmente en línea. | D9: 10
A10: CNT-001-01-18 | B10: Solicitud de Cesión de Derechos de Servicio Móvil Avanzado (SMA) Masivo Persona Natural | C10: No se completa totalmente en línea. | D10: 10
A11: CNT-002-01-06 | B11: Solicitud de Convenio de Pago de Servicio de Internet Fijo Masivo Persona Natural | C11: No se completa totalmente en línea. | D11: 10
A12: CNT-002-01-03 | B12: Solicitud de Creación de cuentas adicionales de Correo de Servicio de Internet Fijo Masivo Persona Natural | C12: No se completa totalmente en línea. | D12: 10
A13: CNT-002-01-10 | B13: Solicitud de Descuento por discapacidad de Servicio de Internet Fijo Masivo Persona Natural | C13: Totalmente en Línea | D13: 0
A14: CNT-001-01-13 | B14: Solicitud de detalle de llamadas de Servicio Móvil Avanzado (SMA) Masivo Persona Natural | C14: No se completa totalmente en línea. | D14: 10
A15: CNT-002-01-05 | B15: Solicitud de Detalle de Navegación de Servicio de Internet Fijo Masivo Persona Natural | C15: No se completa totalmente en línea. | D15: 10
A16: CNT-001-01-14 | B16: Solicitud de pasa saldo de Servicio Móvil Avanzado (SMA) Masivo Persona Natural | C16: Totalmente en Línea | D16: 0
A17: CNT-002-01-08 | B17: Solicitud de Plan Estudiantil de Servicio de Internet Fijo Masivo Persona Natural | C17: Totalmente en Línea | D17: 0
A18: CNT-002-01-15 | B18: Solicitud de Queja Técnica de Servicio de Internet Fijo Masivo Persona Jurídica | C18: Totalmente en Línea | D18: 0
A19: CNT-001-01-20 | B19: Solicitud de Queja Técnica de Servicio Móvil Avanzado (SMA) Masivo Persona Natural | C19: Totalmente en Línea | D19: 0
A20: CNT-001-01-15 | B20: Solicitud de Recargas con cargo a factura o débito bancario de Servicio Móvil Avanzado (SMA) Masivo Persona Natural | C20: Totalmente en Línea | D20: 0
A21: CNT-002-01-14 | B21: Solicitud de Reclamo de Facturación de Servicio de Internet Fijo Masivo Persona Natural | C21: Totalmente en Línea | D21: 0
A22: CNT-001-01-16 | B22: Solicitud de Reclamo de Facturación de Servicio Móvil Avanzado (SMA) Masivo Persona Natural | C22: Totalmente en Línea | D22: 0
A23: CNT-002-01-04 | B23: Solicitud de Suspensión temporal de Servicio de Internet Fijo Masivo Persona Natural | C23: No se completa totalmente en línea. | D23: 10
A24: CNT-001-01-12 | B24: Solicitud para Número Reservado de Servicio Móvil Avanzado (SMA) Masivo Persona Natural | C24: No se completa totalmente en línea. | D24: 10
A25: CNT-001-01-11 | B25: Solicitud de Roaming de Servicio de Servicio Móvil Avanzado (SMA) Masivo Persona Natural | C25: No se completa totalmente en línea. | D25: 10
A26: CNT-001-01-10 | B26: Solicitud de Cambio de Equipo Móvil (Robo-Pérdida-Daño) de Servicio Móvil Avanzado (SMA) Masivo Persona Natural | C26: No se completa totalmente en línea. | D26: 10
A27: CNT-001-01-08 | B27: Solicitud de Reposición de Simcard (Robo-Pérdida-Daño) de Servicio Móvil Avanzado (SMA) Masivo Persona Natural | C27: No se completa totalmente en línea. | D27: 10
A28: CNT-001-01-09 | B28: Solicitud de Suspensión por Robo o Pérdida de Equipo de Servicio Móvil Avanzado (SMA) Masivo Persona Natural | C28: Totalmente en Línea | D28: 0
A29: CNT-002-01-11 | B29: Solicitud de Traslado de Servicio de Internet Fijo Masivo Persona Natural | C29: Totalmente en Línea | D29: 0
A30: CNT-001-01-03 | B30: Solicitud de Servicio Móvil Avanzado (SMA) Portabilidad Prepago Masivo Persona Natural | C30: No se completa totalmente en línea. | D30: 10
A31: CNT-002-01-02 | B31: Solicitud de Cambio de Plan - Velocidad de Servicio de Internet Fijo Masivo Persona Natural | C31: Totalmente en Línea | D31: 0
A32: CNT-001-01-04 | B32: Solicitud de Servicio Móvil Avanzado (SMA) Portabilidad Postpago Masivo Persona Natural | C32: No se completa totalmente en línea. | D32: 10
A33: CNT-001-01-01 | B33: Solicitud de Servicio Móvil Avanzado (SMA) Prepago Masivo Persona Natural | C33: Totalmente en Línea | D33: 0
A34: CNT-001-01-02 | B34: Solicitud de Servicio Móvil Avanzado (SMA) Postpago Masivo Persona Natural | C34: Totalmente en Línea | D34: 0
A35: CNT-002-01-01 | B35: Solicitud de Plan Hogar de Servicio de Internet Fijo Masivo Persona Natural | C35: Totalmente en Línea | D35: 0
A36: CNT-001-01-19 | B36: Consulta de valores a pagar o estado de pago por valores pendientes de Servicio Móvil Avanzado (SMA) Persona Natural (en los Centros de atención). | C36: Totalmente en Línea | D36: 0
A37: CNT-002-01-16 | B37: Consulta de valores a pagar o estado de pago por valores pendientes de Servicio Internet Fijo Masivo Persona Natural (en los Centros de atención). | C37: Totalmente en Línea | D37: 0
A38: CNT-001-01-07 | B38: Solicitud de Cambio de Plan de Servicio Móvil Avanzado (SMA) Masivo Persona Natural | C38: No se completa totalmente en línea. | D38: 10
A39: CNT-001-01-05 | B39: Solicitud de Activación de Paquetes de voz de Servicio Móvil Avanzado (SMA) Masivo Persona Natural | C39: No se completa totalmente en línea. | D39: 10
A40: CNT-002-01-13 | B40: Solicitud de Cancelación de Servicios del Servicio de Internet Fijo Masivo Persona Natural | C40: No se completa totalmente en línea. | D40: 10
A41: CNT-002-01-09 | B41: Solicitud de Cambio de Módem de Servicio de Internet Fijo Masivo Persona Natural | C41: Totalmente en Línea | D41: 0

Sheet RESUMEN
C1: BÁSICOS | H1: ADICIONALES
A2: ID trámite | B2: Nombre del trámite | C2: Demanda | D2: Quejas | E2: Costo para administración | F2: Tiempo de respuesta | G2: Canal de atención | H2: Necesidades ciudadanas | J2: Susceptibilidad a corrupción | L2: Volumen de devoluciones | N2: PUNTAJE TOTAL
H3: Criterio | I3: Puntuación | J3: Criterio | K3: Puntuación | L3: Criterio | M3: Puntuación | U3: demanda | V3: 0 | W3: 3 | X3: 6 | Y3: 10
A4: CNT-002-01-07 | B4: Solicitud de Actualización de Datos de Servicio de Internet Fijo Masivo Persona Natural | C4: 0 | D4: 0 | E4: 5 | F4: 0 | G4: 0 | H4: NO | I4: =IF(H4="SI",5,0) -> 0 | J4: NO | K4: =IF(J4="SI",10,0) -> 0 | L4: NO | M4: =IF(L4="SI",5,0) -> 0 | N4: =SUM(C4:G4,I4,K4,M4) -> 5 | U4: quejas | V4: 0 | W4: 4 | X4: 10
A5: CNT-001-01-17 | B5: Solicitud de Cambio de Entidad Financiera para el Pago de Servicio Móvil Avanzado (SMA) Masivo Persona Natural | C5: 0 | D5: 0 | E5: 5 | F5: 0 | G5: 10 | H5: NO | I5: =IF(H5="SI",5,0) -> 0 | J5: NO | K5: =IF(J5="SI",10,0) -> 0 | L5: NO | M5: =IF(L5="SI",5,0) -> 0 | N5: =SUM(C5:G5,I5,K5,M5) -> 15 | U5: cpa | V5: 5 | W5: 10 | X5: 20
A6: CNT-002-01-12 | B6: Solicitud de Cambio de Forma de Pago de Servicio de Internet Fijo Masivo Persona Natural | C6: 0 | D6: 0 | E6: 5 | F6: 30 | G6: 10 | H6: NO | I6: 0 | J6: NO | K6: 0 | L6: NO | M6: 0 | N6: 45 | U6: tr | V6: 0 | W6: 30
A7: CNT-001-01-06 | B7: Solicitud de Cambio de Número de Servicio Móvil Avanzado (SMA) Masivo Persona Natural | C7: 0 | D7: 0 | E7: 5 | F7: 30 | G7: 10 | H7: NO | I7: 0 | J7: NO | K7: 0 | L7: NO | M7: 0 | N7: 45 | U7: ca | V7: 0 | W7: 10
A8: CNT-002-01-17 | B8: Solicitud de Cesión de Derechos de Servicio de Internet Fijo Masivo Persona Natural | C8: 0 | D8: 0 | E8: 10 | F8: 0 | G8: 10 | H8: NO | I8: 0 | J8: NO | K8: 0 | L8: NO | M8: 0 | N8: 20 | V8: SI | W8: NO
A9: CNT-001-01-18 | B9: Solicitud de Cesión de Derechos de Servicio Móvil Avanzado (SMA) Masivo Persona Natural | C9: 0 | D9: 0 | E9: 5 | F9: 0 | G9: 10 | H9: NO | I9: 0 | J9: NO | K9: 0 | L9: NO | M9: 0 | N9: 15
A10: CNT-002-01-06 | B10: Solicitud de Convenio de Pago de Servicio de Internet Fijo Masivo Persona Natural | C10: 0 | D10: 0 | E10: 10 | F10: 0 | G10: 10 | H10: NO | I10: 0 | J10: NO | K10: 0 | L10: NO | M10: 0 | N10: 20
A11: CNT-002-01-03 | B11: Solicitud de Creación de cuentas adicionales de Correo de Servicio de Internet Fijo Masivo Persona Natural | C11: 0 | D11: 0 | E11: 5 | F11: 0 | G11: 10 | H11: NO | I11: 0 | J11: NO | K11: 0 | L11: NO | M11: 0 | N11: 15
A12: CNT-002-01-10 | B12: Solicitud de Descuento por discapacidad de Servicio de Internet Fijo Masivo Persona Natural | C12: 0 | D12: 0 | E12: 10 | F12: 0 | G12: 0 | H12: NO | I12: 0 | J12: NO | K12: 0 | L12: NO | M12: 0 | N12: 10
A13: CNT-001-01-13 | B13: Solicitud de detalle de llamadas de Servicio Móvil Avanzado (SMA) Masivo Persona Natural | C13: 0 | D13: 0 | E13: 5 | F13: 0 | G13: 10 | H13: NO | I13: 0 | J13: NO | K13: 0 | L13: NO | M13: 0 | N13: 15
A14: CNT-002-01-05 | B14: Solicitud de Detalle de Navegación de Servicio de Internet Fijo Masivo Persona Natural | C14: 0 | D14: 0 | E14: 20 | F14: 0 | G14: 10 | H14: NO | I14: 0 | J14: NO | K14: 0 | L14: NO | M14: 0 | N14: 30
A15: CNT-001-01-14 | B15: Solicitud de pasa saldo de Servicio Móvil Avanzado (SMA) Masivo Persona Natural | C15: 0 | D15: 0 | E15: 5 | F15: 0 | G15: 0 | H15: NO | I15: 0 | J15: NO | K15: 0 | L15: NO | M15: 0 | N15: 5
A16: CNT-002-01-08 | B16: Solicitud de Plan Estudiantil de Servicio de Internet Fijo Masivo Persona Natural | C16: 0 | D16: 0 | E16: 20 | F16: 0 | G16: 0 | H16: NO | I16: 0 | J16: NO | K16: 0 | L16: NO | M16: 0 | N16: 20
A17: CNT-002-01-15 | B17: Solicitud de Queja Técnica de Servicio de Internet Fijo Masivo Persona Jurídica | C17: 0 | D17: 0 | E17: 20 | F17: 0 | G17: 0 | H17: NO | I17: 0 | J17: NO | K17: 0 | L17: NO | M17: 0 | N17: 20
A18: CNT-001-01-20 | B18: Solicitud de Queja Técnica de Servicio Móvil Avanzado (SMA) Masivo Persona Natural | C18: 0 | D18: 0 | E18: 20 | F18: 0 | G18: 0 | H18: NO | I18: 0 | J18: NO | K18: 0 | L18: NO | M18: 0 | N18: 20
A19: CNT-001-01-15 | B19: Solicitud de Recargas con cargo a factura o débito bancario de Servicio Móvil Avanzado (SMA) Masivo Persona Natural | C19: 0 | D19: 0 | E19: 5 | F19: 30 | G19: 0 | H19: NO | I19: 0 | J19: NO | K19: 0 | L19: NO | M19: 0 | N19: 35
A20: CNT-002-01-14 | B20: Solicitud de Reclamo de Facturación de Servicio de Internet Fijo Masivo Persona Natural | C20: 0 | D20: 0 | E20: 10 | F20: 0 | G20: 0 | H20: NO | I20: 0 | J20: NO | K20: 0 | L20: NO | M20: 0 | N20: 10
A21: CNT-001-01-16 | B21: Solicitud de Reclamo de Facturación de Servicio Móvil Avanzado (SMA) Masivo Persona Natural | C21: 0 | D21: 0 | E21: 20 | F21: 0 | G21: 0 | H21: NO | I21: 0 | J21: NO | K21: 0 | L21: NO | M21: 0 | N21: 20
A22: CNT-002-01-04 | B22: Solicitud de Suspensión temporal de Servicio de Internet Fijo Masivo Persona Natural | C22: 0 | D22: 0 | E22: 5 | F22: 0 | G22: 10 | H22: NO | I22: 0 | J22: NO | K22: 0 | L22: NO | M22: 0 | N22: 15
A23: CNT-001-01-12 | B23: Solicitud para Número Reservado de Servicio Móvil Avanzado (SMA) Masivo Persona Natural | C23: 0 | D23: 0 | E23: 5 | F23: 0 | G23: 10 | H23: NO | I23: 0 | J23: NO | K23: 0 | L23: NO | M23: 0 | N23: 15
A24: CNT-001-01-11 | B24: Solicitud de Roaming de Servicio de Servicio Móvil Avanzado (SMA) Masivo Persona Natural | C24: 3 | D24: 0 | E24: 10 | F24: 30 | G24: 10 | H24: NO | I24: 0 | J24: NO | K24: 0 | L24: NO | M24: 0 | N24: 53
A25: CNT-001-01-10 | B25: Solicitud de Cambio de Equipo Móvil (Robo-Pérdida-Daño) de Servicio Móvil Avanzado (SMA) Masivo Persona Natural | C25: 3 | D25: 0 | E25: 20 | F25: 0 | G25: 10 | H25: NO | I25: 0 | J25: NO | K25: 0 | L25: NO | M25: 0 | N25: 33
A26: CNT-001-01-08 | B26: Solicitud de Reposición de Simcard (Robo-Pérdida-Daño) de Servicio Móvil Avanzado (SMA) Masivo Persona Natural | C26: 3 | D26: 0 | E26: 10 | F26: 0 | G26: 10 | H26: NO | I26: 0 | J26: NO | K26: 0 | L26: NO | M26: 0 | N26: 23
A27: CNT-001-01-09 | B27: Solicitud de Suspensión por Robo o Pérdida de Equipo de Servicio Móvil Avanzado (SMA) Masivo Persona Natural | C27: 3 | D27: 0 | E27: 5 | F27: 0 | G27: 0 | H27: NO | I27: 0 | J27: NO | K27: 0 | L27: NO | M27: 0 | N27: 8
A28: CNT-002-01-11 | B28: Solicitud de Traslado de Servicio de Internet Fijo Masivo Persona Natural | C28: 3 | D28: 0 | E28: 20 | F28: 0 | G28: 0 | H28: NO | I28: 0 | J28: NO | K28: 0 | L28: NO | M28: 0 | N28: 23
A29: CNT-001-01-03 | B29: Solicitud de Servicio Móvil Avanzado (SMA) Portabilidad Prepago Masivo Persona Natural | C29: 6 | D29: 0 | E29: 10 | F29: 0 | G29: 10 | H29: NO | I29: 0 | J29: NO | K29: 0 | L29: NO | M29: 0 | N29: 26
A30: CNT-002-01-02 | B30: Solicitud de Cambio de Plan - Velocidad de Servicio de Internet Fijo Masivo Persona Natural | C30: 6 | D30: 0 | E30: 10 | F30: 0 | G30: 0 | H30: NO | I30: 0 | J30: NO | K30: 0 | L30: NO | M30: 0 | N30: 16
A31: CNT-001-01-04 | B31: Solicitud de Servicio Móvil Avanzado (SMA) Portabilidad Postpago Masivo Persona Natural | C31: 6 | D31: 0 | E31: 20 | F31: 30 | G31: 10 | H31: NO | I31: 0 | J31: NO | K31: 0 | L31: NO | M31: 0 | N31: 66
A32: CNT-001-01-01 | B32: Solicitud de Servicio Móvil Avanzado (SMA) Prepago Masivo Persona Natural | C32: 6 | D32: 0 | E32: 10 | F32: 30 | G32: 0 | H32: NO | I32: 0 | J32: NO | K32: 0 | L32: NO | M32: 0 | N32: 46
A33: CNT-001-01-02 | B33: Solicitud de Servicio Móvil Avanzado (SMA) Postpago Masivo Persona Natural | C33: 6 | D33: 0 | E33: 10 | F33: 0 | G33: 0 | H33: NO | I33: 0 | J33: NO | K33: 0 | L33: NO | M33: 0 | N33: 16
A34: CNT-002-01-01 | B34: Solicitud de Plan Hogar de Servicio de Internet Fijo Masivo Persona Natural | C34: 10 | D34: 0 | E34: 20 | F34: 30 | G34: 0 | H34: NO | I34: 0 | J34: NO | K34: 0 | L34: NO | M34: 0 | N34: 60
A35: CNT-001-01-19 | B35: Consulta de valores a pagar o estado de pago por valores pendientes de Servicio Móvil Avanzado (SMA) Persona Natural (en los Centros de atención). | C35: 10 | D35: 0 | E35: 10 | F35: 0 | G35: 10 | H35: NO | I35: 0 | J35: NO | K35: 0 | L35: NO | M35: 0 | N35: 30
A36: CNT-002-01-16 | B36: Consulta de valores a pagar o estado de pago por valores pendientes de Servicio Internet Fijo Masivo Persona Natural (en los Centros de atención). | C36: 10 | D36: 0 | E36: 20 | F36: 30 | G36: 0 | H36: NO | I36: 0 | J36: NO | K36: 0 | L36: SI | M36: 5 | N36: 65
A37: CNT-001-01-07 | B37: Solicitud de Cambio de Plan de Servicio Móvil Avanzado (SMA) Masivo Persona Natural | C37: 10 | D37: 0 | E37: 10 | F37: 30 | G37: 10 | H37: NO | I37: 0 | J37: NO | K37: 0 | L37: NO | M37: 0 | N37: 60
A38: CNT-001-01-05 | B38: Solicitud de Activación de Paquetes de voz de Servicio Móvil Avanzado (SMA) Masivo Persona Natural | C38: 10 | D38: 0 | E38: 5 | F38: 30 | G38: 10 | H38: NO | I38: 0 | J38: NO | K38: 0 | L38: NO | M38: 0 | N38: 55
A39: CNT-002-01-13 | B39: Solicitud de Cancelación de Servicios del Servicio de Internet Fijo Masivo Persona Natural | C39: 10 | D39: 0 | E39: 20 | F39: 0 | G39: 10 | H39: NO | I39: 0 | J39: NO | K39: 0 | L39: NO | M39: 0 | N39: 40
A40: CNT-002-01-09 | B40: Solicitud de Cambio de Módem de Servicio de Internet Fijo Masivo Persona Natural | C40: 10 | D40: 0 | E40: 20 | F40: 0 | G40: 0 | H40: NO | I40: 0 | J40: NO | K40: 0 | L40: NO | M40: 0 | N40: 30
